{"text_format":"1","workbook":"xlsx","n_sheets":2,"sheets":["EXPEDIENTES 2021","EXPEDIENTES 2022"],"not_rendered":{"charts":0,"images":0,"macros":0,"external_links":0,"defined_names":2,"comments":0,"pivot_tables":0},"unopened":[],"bounds":{"document_bytes":16777216,"sheet_cells":100000,"rows_first":2000,"rows_last":500,"rows_between":2000,"halvings":0,"cell_chars":16384,"cell_head_chars":4096},"cells_cut":0,"cells_raw":0,"read":"whole","date_system":"1900"}

{"sheet":"EXPEDIENTES 2021","index":0,"n_rows":139,"n_cols":29,"rows_kept":139,"cut":false,"hidden":false,"merged":[]}
["CONSEJERIA","SERVICIO","Nº EXP.","NOMBRE DE EXPEDIENTE","SITUACIÓN ACTUAL","OBSERVACIONES","FECHA APROBACIÓN EXPEDIENTE","IMPORTE DE LICITACIÓN SIN IGIC","IGIC","IMPORTE DE LICITACIÓN CON IGIC","VALOR ESTIMADO SIN IGIC","TIPO DE CONTRATO","TRÁMITE -PROCEDIMIENTO","PRÓRROGA (en meses)","PLAZO DE EJECUCIÓN (en meses)","CPV","FECHA PUBLICACIÓN LICITACIÓN","FECHA DE ADJUDICACIÓN ","FECHA PUBLICACIÓN ADJUDICACIÓN","FECHA  DESIERTO","FECHA RENUNCIA O DESISTIMIENTO","IMPORTE DE ADJUDICACIÓN SIN IGIC","IGIC ADJUDICACIÓN","IMPORTE DE ADJUDICACIÓN CON IGIC","RESPONSABLE CONTRATO","CONTRATISTA NOMBRE ","CONTRATISTA CIF","FECHA FORMALIZACIÓN CONTRATO","FECHA PUBLICACIÓN CONTRATO"]
["Sector Primario y Soberanía Alimentaria","Agricultura","2020/00003395B; LOTE Nº 1","“SUMINISTRO DE OLIVOS, CITRICOS, FRUTALES DE HUESO Y PEPITA”","FINALIZADO; A.C.; R.P. CONTRATOS","Dividido en 2 lotes","2021-02-17"," 44.910,68\n","1.347,32€\n"," 46.258,00€\n","53982,68 \n(todo el contrato)","Suministro","Abierto simplificado","No procede","Lote 1 (10.000 Olivos y 491 Cítricos): El plazo de entrega será dos meses\nLote 1 (4.000 Olivos y 500 Cítricos)","03450000-9 \n03120000-8","2021-02-19","2021-03-31","2021-04-12",null,null,{"$f":"X2-W2","v":40430.68},1212.92,41643.599999999999,"Antonio Mesa Hernández, Jefe de la Granja de Pozo Negro","CENTRO DE JARDINERÍA LA\nLAJITA S.L."," B35548551","2021-04-14","2021-04-15"]
["Sector Primario y Soberanía Alimentaria","Agricultura","2020/00003395B; Lote nº 2","“SUMINISTRO DE OLIVOS, CITRICOS, FRUTALES DE HUESO Y PEPITA”","FINALIZADO; A.C.","Dividido en 2 lotes","2021-02-17",9072,272.16000000000003,9344.16,"53982,68\n(todo el contrato)","Suministro","Abierto simplificado","No procede"," Lote 2 (1.440 frutales de huesos y pepitas): El\nplazo de entrega será durante los tres últimos meses del año 2021.","03450000-9 \n03120000-8","2021-02-19","2021-03-31","2021-04-13",null,null,{"$f":"X3-W3","v":9057.6},271.73,9329.33,"Antonio Mesa Hernández, Jefe de la Granja de Pozo Negro","ARBOLES FRUTALES ORERO, S.L.","\nB41236894","2021-04-14","2021-04-14"]
["Aguas, Residuos y Caza","Aguas y Residuos","2019/00037142V; SE0004/21","Redacción de documentos de seguimiento para el Plan de Control y Vigilancia de la Autorización Ambiental Integrada del Complejo Ambiental de Zurita","FINALIZADO; A.C.; R.P. CONTRATOS","Devuelto a Aguas y Residuos:07.06.2021; Expte. incluido A.C.","2021-03-11",72427.3,5069.91,77497.210000000006,72427.3,"Servicio","Abierto Simplificado ","No procede","12 meses","90714000 \n90715000","2021-03-12","2021-06-01","2021-06-07",null,null,56229.67,3936.08,60165.75,"GemmaPaz Mosquera (Técnica de Aguas y residuos)","INGENIERIÍA Y GESTIÓN INDUSTRIAL ,S.L.U.","B13102009","2021-06-03","2021-06-07"]
["Aguas, Residuos y Caza","Aguas y Residuos","2020/00000461A- Plyca SE0023/20","Contrato de servicios para la gestión de tres plantas de transferencia y cuatro puntos limpios en la isla de Fuerteventura","FINALIZADO; A.C.; R.P. CONTRATOS","Devuelto Aguas y Residuos; Expte incluido A.Cuentas","2020-06-29",275198.36,19263.89,294462.25,825595.08,"Servicio","Abierto regulación armonizada","2 prórrogas de 6 meses cada una por acuerdo expreso de las partes y su inicio\nvendrá determinado con la suscripción del acta de inicio del servicio","6 meses","90500000-2","2020-07-06","2021-02-17","2021-02-17",null,null,"275198.36","19263.89","294462.25","Gemma Paz Mosquera (Técnica de Aguas y residuos)","UTE STVSUMYTRANS (SUMYTRANS HRDOS JRC 2020, S.L. Y\nSTV GESTIÓN, S.L.)","U04932919","2021-03-24","2021-03-24"]
["Industria, Comercio, Transportes, Accesibilidad y Movilidad Sostenible","Artesania","2020/00013829E \nSE0051/20","SERVICIOS DE GESTIÓN, MANTENIMIENTO, COMUNICACIÓN ONLINE, Y SERVICIOS DE COMMUNITY MANAGER PARA LA WEB DE ARTESANÍA DEL CABILDO INSULAR DE FUERTEVENTURA ","Finalizado, BD, Audic. Cuentas; R.P. Contratos",null,"2020-12-14",33300,2331,35631,66600,"Servicio","Abierto simplificado","1 año","1 año","79400000-8 \n72000000-5","2020-12-16","2021-04-20","2021-04-22",null,null,{"$f":"X6-W6","v":21645},1515.15,23160.15,"María Elena Gutiérrez Lima, Técnica del Servicio de Artesanía","OVEJERO SEQUEIRO, S.L","B10407096","2021-04-22","2021-04-23"]
[null,"Presidencia","2019/00012003V- SU0017/20- (CAROLINA) ","Suministro de sillas ergonómicas y mobiliario para puestos de pantalla de visualización de datos","FINALIZADO; A.C.","Trasladado al Servicio:23.07.2021","2020-11-16",32967,"2307.69","35274.69",null,"Suministro","Abierto, simplificado",null,2,"39000000-2","2020-11-16","2021-06-14","2021-07-23",null,null,21600,1512,23112,"Agustín Noval","PANEL STANDARD, S.L.","B38288817","2021-07-02","2021-07-23"]
["Infraestructuras, Territorio y Sector Primario","Carreteras","2019/125R; OB0019/20\n","Travesía de Villaverde carretera FV-101.medidas provisionales para la reducción de la velocidad del tráfico.","FINALIZADO; A.C. y R.P. Contratos","Trasaladado al servicio:21.05.2021; Incluido A.C.","2020-12-16","208830.46","14618.13","223448.59","208830.46","Obra","Abierto Simplificado","No procede","3 meses","45233150-5","2020-12-18","2021-04-28","2021-04-28",null,null,{"$f":"X8-W8","v":146870.46000000002},10280.93,157151.39000000001,"Don Orlando D. Fajardo Gutiérrez, Ingeniero Técnico de Obras Públicas del\nServicio de Carreteras","CRISPAL ISLAS SL","B76126804","2021-05-18","2021-05-18"]
["Infraestructuras, Territorio y Sector Primario","Carreteras","2019/6893H \nOB0017/20","Mejora del firme  carretera Fv-10 entre PP.KK., 30.500 y 35.530","FINALIZADO; A.C.; R.P. Contratos","Devuelto expte. a Carreteras:24.06.2021; Enviar documentación Audiencia C.; Incluido en relación contratos","2020-12-01",959750.94,67182.570000000007,1026933.51,959750.94,"Obra","Abierto Simplificado","No procede","2 meses","45233223-8","2020-12-03","2021-05-31","2021-06-04",null,null,913203.02,63924.21,977127.23,"Orlando Fajardo Gutiérrez","UTE.:CORORASA- TECOPSA, S.A ","U42791582","2021-06-23","2021-06-24"]
["Cultura, Patrimonio Histórico y Difusión Patrimonio Cultural","Centro de Arte y Exposiciones","2019/00011759A- SE0028/20","SERVICIO DE MONTAJE Y DESMONTAJE DE EXPOSICIONES, APOYO A LA ACTIVIDAD DEL PALACIO DE FORMACIÓN Y CONGRESOS DE FUERTEVENTURA Y MANIPULACIÓN DE LA COLECCIÓN DE ARTE, ORGANIZACIÓN DEL DEPÓSITO DE ARTE DEL CABILDO INSULAR DE FUERTEVENTURA, EN EL CENTRO DE ARTE JUAN ISMAEL Y CENTROS ADSCRITOS","Lote 1; Desistido procedimiento","2 LOTES","2020-09-02",32933.129999999997,2305.3200000000002,35238.449999999997,188231.7,"Servicio","Abierto","Períodos de 1 año","1 año","63100000-0/  63110000-3/  79950000-8/ 79956000-0/ 92521000-9 ","2020-09-09","Desistido proce: 14/06/2021"]
["Cultura, Patrimonio Histórico y Difusión Patrimonio Cultural","Centro de Arte y Exposiciones","2019/00011759A- SE0028/20","SERVICIO DE MONTAJE Y DESMONTAJE DE EXPOSICIONES, APOYO A LA ACTIVIDAD DEL PALACIO DE FORMACIÓN Y CONGRESOS DE FUERTEVENTURA Y MANIPULACIÓN DE LA COLECCIÓN DE ARTE, ORGANIZACIÓN DEL DEPÓSITO DE ARTE DEL CABILDO INSULAR DE FUERTEVENTURA, EN EL CENTRO DE ARTE JUAN ISMAEL Y CENTROS ADSCRITOS","Lote 2; Desistido procedimiento","2 LOTES","2020-09-02",61182.720000000001,4282.8,65465.52,188231.7,"Servicio","Abierto","Períodos de 1 año","1 año","63100000-0/  63110000-3/  79950000-8/ 79956000-0/ 92521000-9 ","2020-09-09"]
["Cultura, Patrimonio Histórico y Difusión Patrimonio Cultural","Cultura","2020/00022111R- SU0016/20","SUMINISTRO DE DOS PIANOS DE COLA PARA SU UTILIZACIÓN EN LAS DIFERENTES ACTIVIDADES CULTURALES QUE SE ORGANIZAN REGULARMENTE EN EL AUDITORIO INSULAR DE FUERTEVENTURA Y EN EL CENTRO POLIVALENTE MANUEL SANCHEZ GONZÁLEZ.","FINALIZADO; AC.; R. P.CONTRATOS","Trasladado al Servicio","2020-11-10",79253.03,5547.71,84800.74,79253.03,"Suministro","Abierto",null,"plazo máximo de 60 DÍAS a partir","37311000-2","2020-11-12","2021-06-02",null,null,null,61965,"4337.55","66302.55","Enrique Soler","IBERPIANO TRADING, S.L.","B73729618","2021-06-16"]
["Deportes, Seguridad y Emergencias","Deportes","2020/00010637G- SE0044/20","SERVICIO DE APOYO AL CONTROL DE USUARIOS, ACCESOS Y APERTURA, SALIDAS Y CIERRE DE LOS CENTROS DEPORTIVOS DEL CABILDO DE FUERTEVENTURA.","FINALIZADO; A.C.; R.P. CONTRATOS","Trasladado al Servicio:06/08/2021","2020-11-06",137383.18,9616.82,147000,353271.03,"Servicio","Abierto- Regulación armonizada","periodos de doce meses hasta un máximo de dos prorrogas","doce (12) meses a contar desde la formalización del contrato","98341120-2","2020-11-12","2021-05-20","2021-08-06",null,null,125000,8750,133750,"Ancor Saavedra Armas","CEE GRANJA ADISFUER, S.L.","B35373828","2021-07-30","2021-08-06"]
["Empleo, Educación y Juventud","Educación y Juventud","2020/2113V- SE0035/20","SERVICIO DINAMIZADORES  JUVENILES","FINALIZADO; A.C.","Trasladado al servicio","2020-10-22",243798.5,17065.900000000001,260864.4,487597,"Servicio","Abierto","por un año, hasta un máximo de dos prórrogas","2 años","80310000-0","2020-10-28","2021-03-29","2021-03-29",null,null,{"$f":"X14-W14","v":238034.49},16662.41,254696.9,"Inmaculada Lavandera López, Jefa de Servicio de Educación y Juventud","OCIDE ASESORES S.L. "," B38530614","2021-04-27","2021-04-27"]
["Industria, Comercio, Transportes, Accesibilidad y Movilidad Sostenible","Industria y Actividades Clasificadas","2019/00008741A-OB0002/21","2019 INSTALACIONES DE RENOVABLES EN ALBERGUE DE TEFÍA.","FINALIZADO; A.C.; R.P. Contratos","No lotes; BD A.C.; Trasladado expedienta a Industria:26.07.2021 ","2021-04-30",52106.74,3647.47,55754.21,52106.74,"Obra","Abierto simplificado","No procede","45 días desde siguiente a la firma del acta de replanteo","45300000-0 \n45315600-4\n45259900-6\n45261215-4","2021-05-05","2021-07-20","2021-07-23",null,null,38808.449999999997,2716.59,41525.040000000001,"Christian Olivares Martínez","CAMBIO ENERGÉTICO, S.L.","B10481216","2021-07-23","2021-07-26"]
["Industria, Comercio, Transportes, Accesibilidad y Movilidad Sostenible","Industria y Actividades Clasificadas","2019/00024228Y- OB0013/20","ALUMBRADO PUBLICO MEDIANA FV-2 PUERTO DEL ROSARIO-AEROPUERTO; LOTE 1","FINALIZADO; A.C.; R.P. Contratos","DOS LOTES, incluida documentación A.C.","2020-09-17",307110.40999999997,"21.497,73€ \n",328608.14,"880546,16\n(total contrato)","Obra","Abierto simplificado","No procede"," 4 (Cuatro) \n","45310000-3 \n45316110-9 \n45316100-6 \n45251160-0 \n09332000-5 \n","2020-09-21","09/12/2020 \n","2020-12-10",null,null," 261043,85€ \n"," 18.273,07€ \n"," 279.316,92€\n","Oliver Rodríguez González (Director Facultativo de las obras y Responsable\ndel contrato)","INSTALACIONES ELECTRICAS ROLUZ SL \n","B35558725\n","2021-01-29","2021-02-01"]
["Industria, Comercio, Transportes, Accesibilidad y Movilidad Sostenible","Industria y Actividades Clasificadas","2019/00024228Y- OB0013/20","ALUMBRADO PUBLICO MEDIANA FV-2 PUERTO DEL ROSARIO-AEROPUERTO; LOTE 2","FINALIZADO; A.C.; R.P. Contratos","DOS LOTES","2020-09-17",573435.75,40140.5,613576.25,"880546,16\n(total contrato)","Obra","Abierto simplificado","No procede","2 (dos) meses y 7 días","45310000-3 \n45316110-9 \n45316100-6 \n45251160-0 \n09332000-5 \n","2020-09-21","09/12/2020 \n","2020-12-10",null,null,413316.81,28932.18,442248.99,"Oliver Rodríguez González (Director Facultativo de las obras y Responsable\ndel contrato)","UTE. ALUMBRADO PÚBLICO MEDIANA FV-2","U02849065","2021-01-29","2021-02-01"]
["Industria, Comercio, Transportes, Accesibilidad y Movilidad Sostenible","Industria y Actividades Clasificadas","2019/8731Q; OB0001/21","2019 AUTOCONSUMO EDIF. MUN. LA OLIVA (POLIDEPORTIVO DE CORRALEJO)","FINALIZADO; A.C.; R.P. Contratos","No lotes; Trasladado al Servicio:29.11.2021","2020-04-30",59189.23,4143.25,63332.480000000003,59189.23,"Obra","Abierto simplificado","No procede","50 días naturales a partir de la firma del acta de replanteo","45300000-0 \n45315600-4\n45259900-6\n45261215-4","2021-05-04","2021-11-08","2021-11-29",null,null,{"$f":"X18-W18","v":50615.45},3543.08,54158.53,"D. Mateo Aguiar Grimón, Jefe","LUMICAN S.A.","A35038900","2021-11-29","2021-11-29"]
[null,"Servicio de Infraestructuras","2020/4980D; OB005/21","Acondicionamiento Ramal camino Gran Barranco en el Valle de Santa Inés. T.M. de Betancuria","FINALIZADO; A.C.","Trasladado al Servicio:09.11.2021","2021-06-03",58963.82,4127.47,63091.29,58963.82,"Obra","SUPERSIMPLIFICADO",null,"10 d","45233222-1","2021-06-14","2021-08-11","2021-11-09",null,null,56900.09,3983.01,60883.1,"del Servicio de Industria y Actividades Clasificadas","OBRAS PUBLICAS CANARIAS, S.L.","B76140953","09.08.2021","2021-11-09"]
["Industria, Comercio, Transportes, Accesibilidad y Movilidad Sostenible","Industria y Actividades Clasificadas","2020/1810J \nOB0015/20","Instalaciones con energía renovable perrera municipal de Pájara","FINALIZADO; A.C.","No lotes","2020-11-26",67724.47,4740.71,72465.179999999993,67724.47,"Obras","Abierto simplificado","No procede","20 días a parti de la firma del acta de replanteo","45300000-3 \n 45315600-4\n 45259900-6\n 45261215-4","2020-11-27","31/03/20201","2021-03-31",null,null,{"$f":"X20-W20","v":51270.47},3588.93,54859.4,"Don Oliver Rodríguez González, Ingeniero Técnico Industria","ELECTRIMEGA S.L.","B76210632","2021-04-09","2021-04-12"]
["Industria+A40:J41, Comercio, Transportes, Accesibilidad y Movilidad Sostenible","Industria y Actividades Clasificadas","2020/2777Z- SU0013/20","Suministro de 5 vehículos 100 por cien eléctricos., INTEGRADO 2 LOTES","FINALIZADO, A.C.; R.P. CONTRATOS","Lote nº 1","2020-09-03","33.151,00 €\n",0,"33.151,00 €\n ","33.151,00 €\n ","Suministro","Abierto",null,"3 meses","34144900-7","2020-09-09"," 03/12/20","2020-12-04",null,null,33131.050000000003,0,33131.050000000003,"Mateo Aguiar Grimón (Jefe de Servicio de Industria y Actividades\nClasificadas)"," MACHER MOTOR SL","B35623693","2021-01-11","2021-01-12"]
["Industria, Comercio, Transportes, Accesibilidad y Movilidad Sostenible","Industria y Actividades Clasificadas","2020/2777Z\nPlyca SU0013/20","Suministro de 5 vehículos 100 por cien eléctricos. ","FINALIZADO, A.C.","Lote nº 2; Trasladado al Servicio:14.07.2021","2020-09-03",136000,0,136000,136000,"Suministro","Abierto",null,"3 meses","34144900-7","2020-09-09","2021-06-01","2021-07-14",null,null,135600,0,135600," Mateo Aguiar Grimón (Jefe de Servicio de Industria y Actividades\nClasificadas)","IFUERT S.L.","B76164599","2021-06-23","2021-07-14"]
["Infraestructuras, Territorio y Sector Primario","Infraestructuras","2019/00000517W \nOB0018/20","ACONDICIONAMIENTO Y MEJORA PAISAJÍSTICA DE ESPACIO PÚBLICO EN LA VILLA DE BETANCURIA FDCAN 2019","Desierto","Desierto","2020-12-15",154927.67000000001,10844.94,165772.60999999999,154927.67000000001,"Obra","Abierto Simplificado","No procede","7 meses","45262522-6\n 45233160-8\n45233253-7\n","2020-12-17",null,null,"05/03/2021 \nPublicado 15/03/21"]
["Infraestructuras, Territorio y Sector Primario","Infraestructuras","2019/00026174C \nOB0016/20","AJARDINAMIENTO DEL ÁREA ANEXA AL CENTRO DE DÍA Y RESIDENCIA DE PERSONAS CON DISCAPACIDAD","FINALIZADO; A.C.; R.P. Contratos","Trasladado expte. a Infraestructuras:  19.07.2021 ","2020-11-27",74612.72,5222.8900000000003,79835.61,74612.72,"Obra","Abierto Simplificado art. 159.6 LCSP","No procede","2 meses","45233200-1","2020-12-01","2021-07-05","2021-07-16",null,null,60520.959999999999,4236.47,64757.43,"Ignacio Castillo Alonso"," EULEN, S.A.","A28517308","2021-07-05","2021-07-19"]
["Infraestructuras, Territorio y Sector Primario","Infraestructuras","2019/00038607X- SE0027/20; 2 LOTES","Dirección facultativa de la obra, de las instalaciones y la coordinación de seguridad y salud de la obra correspondiente al proyecto denominado RESIDENCIA Y CENTRO DE DÍA PARA PERSONAS MAYORES DEPENDIENTES, en Puerto del Rosario","FINALIZADO; A.C.","Mesa: 17.09.20: Lote 2 en baja PROJECT- Ok presentó- Encargo a Infra oferta en baja el 14/10/20) //- MESA: 24/09/20: presentada Daniel Padrón doc. Para poder valorar solvencia Lote 1 (pasó el plazo y no presentó RCO Arquitectos)- El 16/10/20 hecho encargo inf. ofertas Lote 1-// MESA: 29/10/20: LOTE 1 (Inf. valoración); LOTE 2 (Inf. Baja Project-justifica)- LOTE 1: Arana req. Doc adjudicar Lote 1 fin hasta 16/11/20 (enviada 05/11/20) // LOTE 2: PROJECT MANAGENT req. adjudicar  requerir fin hasta 16/11/20 (enviada 05/11/20) // Volver mesa"]
["Infraestructuras, Territorio y Sector Primario","Infraestructuras","2019/38480K- Plyca SE0029/20; 9 lotes","CONTRATO DE SERVICIOS PARA LA REDACCIÓN DE PROYECTOS Y DIRECCIÓN FACULTATIVA DE LAS OBRAS Y COORDINACIÓN DE SEGURIDAD Y SALUD DE LAS MISMAS EN CENTROS DE LA RED DE MUSEOS: MIRADOR DE MORRO VELOSA, EN EL FARO DEL TOSTÓN Y CUEVA DEL LLANO","Adjudicado - Lote 1; FINALIZADO; A.C.;","Dividido en 9 lotes; Trasladado al Servicio:12.07.2021","2020-09-14",9028.56,632,9660.56,9028.56,"Servicio","Abierto simplificado","No procede","1 mes y 15 días","71240000-6","2020-09-14","2020-12-21","2020-12-23",null,null,"6300€\n","441€\n"," 6.741,00€\n","Doña María del Pino González Gordillo, Técnica de Infraestructuras","TIM ARQUITECTOS S.L. ","B35766641","2020-12-31","2021-01-04"]
["Infraestructuras, Territorio y Sector Primario","Infraestructuras","2019/38480K-  SE0029/20","CONTRATO DE SERVICIOS PARA LA REDACCIÓN DE PROYECTOS Y DIRECCIÓN FACULTATIVA DE LAS OBRAS Y COORDINACIÓN DE SEGURIDAD Y SALUD DE LAS MISMAS EN CENTROS DE LA RED DE MUSEOS: MIRADOR DE MORRO VELOSA, EN EL FARO DEL TOSTÓN Y CUEVA DEL LLANO","Desierto - Lote 2","Dividido en 9 lotes","2020-09-14",6577.21,460.4,7037.61,6577.21,"Servicio","Abierto simplificado","No procede","Hasta finalización ","71240000-2","2020-09-14",null,null,"2021-03-25"]
["Infraestructuras, Territorio y Sector Primario","Infraestructuras","2019/38480K- SE0029/20","CONTRATO DE SERVICIOS PARA LA REDACCIÓN DE PROYECTOS Y DIRECCIÓN FACULTATIVA DE LAS OBRAS Y COORDINACIÓN DE SEGURIDAD Y SALUD DE LAS MISMAS EN CENTROS DE LA RED DE MUSEOS: MIRADOR DE MORRO VELOSA, EN EL FARO DEL TOSTÓN Y CUEVA DEL LLANO","FINALIZADO; 3","Dividido en 9 lotes","2020-09-14",1960.17,137.21,2097.38,1960.17,"Servicio","Abierto simplificado","No procede","Hasta finalización ","71240000-2","2020-09-14","2021-05-20","2021-07-12",null,null,1687.74,111.15,1698.89,"Ana Vázquez Y Pino González ","PROJECT MANAGENT ARQUITECTOS TECNICOS,S .L.","B38817557","2021-06-01","2021-07-12"]
["Infraestructuras, Territorio y Sector Primario","Infraestructuras","2019/38480K- SE0029/20","CONTRATO DE SERVICIOS PARA LA REDACCIÓN DE PROYECTOS Y DIRECCIÓN FACULTATIVA DE LAS OBRAS Y COORDINACIÓN DE SEGURIDAD Y SALUD DE LAS MISMAS EN CENTROS DE LA RED DE MUSEOS: MIRADOR DE MORRO VELOSA, EN EL FARO DEL TOSTÓN Y CUEVA DEL LLANO","Adjudicado - Lote 4; FINALIZADO","Dividido en 9 lotes","2020-09-14",12407.58,868.53,13276.11,12407.58,"Servicio","Abierto simplificado","No procede","2 meses","71242000-6","2020-09-14","2020-12-21","2020-12-23",null,null,8600,602,9202,"Doña María del Pino González Gordillo, Técnica de Infraestructuras","TIM ARQUITECTOS S.L. "," B35766641","2020-12-31","2021-01-04"]
["Infraestructuras, Territorio y Sector Primario","Infraestructuras","2019/38480K- SE0029/20","CONTRATO DE SERVICIOS PARA LA REDACCIÓN DE PROYECTOS Y DIRECCIÓN FACULTATIVA DE LAS OBRAS Y COORDINACIÓN DE SEGURIDAD Y SALUD DE LAS MISMAS EN CENTROS DE LA RED DE MUSEOS: MIRADOR DE MORRO VELOSA, EN EL FARO DEL TOSTÓN Y CUEVA DEL LLANO","Desierto - Lote 5","Dividido en 9 lotes","2020-09-14",9462.99,662.41,10125.4,9462.99,"Servicio","Abierto simplificado","No procede","Hasta finalización ","71240000-2","2020-09-14",null,null,"2021-03-25"]
["Infraestructuras, Territorio y SectorA53:E56 Primario","Infraestructuras","2019/38480K- Plyca SE0029/20","CONTRATO DE SERVICIOS PARA LA REDACCIÓN DE PROYECTOS Y DIRECCIÓN FACULTATIVA DE LAS OBRAS Y COORDINACIÓN DE SEGURIDAD Y SALUD DE LAS MISMAS EN CENTROS DE LA RED DE MUSEOS: MIRADOR DE MORRO VELOSA, EN EL FARO DEL TOSTÓN Y CUEVA DEL LLANO","Adjudicado - Lote 6; FINALIZADO","Dividido en 9 lotes","2020-09-14",1871.37,131,2002.37,1871.37,"Servicio","Abierto simplificado","No procede","Hasta finalización ","71240000-2","2020-09-14","2021-05-20","2021-07-12",null,null,1515.81,106.11,1621.92,"Ana Vázquez, Pino González (en caso de ausencia)","PROJET MANAGEMENT ARQUITECOTS TÉCNICOS, S.L.","B38817557","2021-06-01","2021-07-12"]
["Infraestructuras, Territorio y Sector Primario","Infraestructuras","2019/38480K- Plyca SE0029/20","CONTRATO DE SERVICIOS PARA LA REDACCIÓN DE PROYECTOS Y DIRECCIÓN FACULTATIVA DE LAS OBRAS Y COORDINACIÓN DE SEGURIDAD Y SALUD DE LAS MISMAS EN CENTROS DE LA RED DE MUSEOS: MIRADOR DE MORRO VELOSA, EN EL FARO DEL TOSTÓN Y CUEVA DEL LLANO","Adjudicado - Lote 7; FINALIZADO","Dividido en 9 lotes","2020-09-14",7031.54,492.21,7523.75,7031.54,"Servicio","Abierto simplificado","No procede","1 mes y 15 días","1240000-2","2020-09-14","2021-05-20","2021-07-12",null,null,5273.11,369.11,5642.11,"Ana Vázquez, Pino González (en caso de ausencia)","TOMÁS FRANCISCO FUENTES BERRIEL","78549148P","2021-06-02","2021-07-12"]
["Infraestructuras, Territorio y Sector Primario","Infraestructuras","2019/38480K- Plyca SE0029/20","CONTRATO DE SERVICIOS PARA LA REDACCIÓN DE PROYECTOS Y DIRECCIÓN FACULTATIVA DE LAS OBRAS Y COORDINACIÓN DE SEGURIDAD Y SALUD DE LAS MISMAS EN CENTROS DE LA RED DE MUSEOS: MIRADOR DE MORRO VELOSA, EN EL FARO DEL TOSTÓN Y CUEVA DEL LLANO","Desierto - Lote 8","Dividido en 9 lotes","2020-09-14",1389.06,97.23,1486.29,1389.06,"Servicio","Abierto simplificado","No procede","Hasta finalización ","1240000-2","2020-09-14",null,null,"2021-03-25"]
["Infraestructuras, Territorio y Sector Primario","Infraestructuras","2019/38480K- Plyca SE0029/20","CONTRATO DE SERVICIOS PARA LA REDACCIÓN DE PROYECTOS Y DIRECCIÓN FACULTATIVA DE LAS OBRAS Y COORDINACIÓN DE SEGURIDAD Y SALUD DE LAS MISMAS EN CENTROS DE LA RED DE MUSEOS: MIRADOR DE MORRO VELOSA, EN EL FARO DEL TOSTÓN Y CUEVA DEL LLANO","Desierto - Lote 9","Dividido en 9 lotes","2020-09-14",639.9,44.79,684.69,639.9,"Servicio","Abierto simplificado","No procede","Hasta finalización ","1240000-2","2020-09-14",null,null,"2021-03-25"]
["Infraestructuras, Territorio y SeA47:J48ctor Primario","Infraestructuras","2020/00020843K- 2019/33010W- OB0014/20","ASFALTADO DE CALLES EN T.M. BETANCURIA,  4 lotes : LOTE Nº 1: Asfaltado Calle Presidente Hormiga. Villa de Betancuria. T.M. de Betancuria. ","Lote 1;  FINALIZADO; A.C.; R,P. CONTRATOS","Entrada: 23/09/20 (Expte genérico 2020/00020843K)","2020-11-10",52567.13,3679.7,56246.83,52567.13,"Obra","Abierto simplificado",null,"Un (1) mes partir del día siguiente al de la firma del acta de comprobación del replanteo.","45233222-1","2020-11-13","2021-05-17","2021-05-28",null,null,52567.13,"3.679.70",56246.83,"Orlando Fajardo Gutiérrez","OBRAS PÚBLICAS CANARIAS, S.L.","B76140953","2021-06-17","2021-06-24"]
["Infraestructuras, Territorio y Sector Primario","Infraestructuras","2020/00020843K-  2019/33009R- OB0014/20","ASFALTADO DE CALLES EN T.M. BETANCURIA, 4 lotes: LOTE Nº 2: Asfaltado de las calles San Bartolomé, Lugar La Montañeta y Santa Inés. Valle de Santa Inés. T.M. de Betancuria. ","Lote 2 A.C.FINALIZADO; A.C.; R,P. CONTRATOS","Entrada: 23/09/20 (Expte genérico 2020/00020843K)","2020-11-10",143499.14000000001,10044.94,153544.07999999999,143499.14000000001,"Obra","Abierto simplificado",null,"Un (1) mes partir del día siguiente al de la firma del acta de comprobación del replanteo.","45233222-1","2020-11-13","2021-05-17","2021-05-28",null,null,143499.14000000001,10044.94,153544.07999999999,null,"OBRAS PÚBLICAS CANARIAS, S.L.","B76140953","2021-06-17"]
["Infraestructuras, Territorio y Sector Primario","Infraestructuras","2020/00020843K-  2019/33012G- OB0014/20","ASFALTADO DE CALLES EN T.M. BETANCURIA, 4 lotes: LOTE Nº 3: Asfaltado de las calles San Juan Torcaz, Gadifer de La Salle y Las Aceitunas. Vega de Rio Palmas. T.M. de Betancuria.","Lote 3FINALIZADO; A.C.; R.P CONTRATOS","Entrada: 23/09/20 (Expte genérico 2020/00020843K)","2020-11-10",54319.360000000001,3802.35,58121.71,54319.360000000001,"Obra","Abierto simplificado",null,"Un (1) mes partir del día siguiente al de la firma del acta de comprobación del replanteo.","45233222-1","2020-11-13","2021-05-17","2021-05-28",null,null,54319.360000000001,3802.35,58121.71,null,"OBRAS PÚBLICAS CANARIAS, S.L.","B76140953","2021-06-17"]
["Infraestructuras, Territorio y Sector Primario","Infraestructuras","2020/00020843K- 2020/4973W- OB0014/20","ASFALTADO DE CALLES EN T.M. BETANCURIA, 4 lotes : LOTE Nº 4: Asfaltado de la calle Los Callejones. Valle de Santa Inés. T.M. de Betancuria.","Lote 4/01/2022 FINALIZADO; A.C., R.P. CONTRATOS","Entrada: 23/09/20 (Expte genérico 2020/00020843K)-","2020-11-10",37202.15,2604.15,39806.300000000003,37202.15,"Obra","Abierto simplificado",null,"Un (1) mes partir del día siguiente al de la firma del acta de comprobación del replanteo.","45233222-1","2020-11-13",null,"2021-05-28",null,null,37202.15,2604.15,39806.300000000003,null,"OBRAS PÚBLICAS CANARIAS, S.L.","B76140953","2021-06-17"]
["Infraestructuras, Territorio y Sector Primario","Obras y Maquinaria","2018/9H\nSE0008/20","Servicio de mantenimiento preventivo y correctivo del parque móvil del Cabildo de Fuerteventura y otras entidades adscritas","FINALIZADO- Lote 1","Devuelto expte. a Obras y Maquinaria:09/07/2021","2020-02-24","55.500,00€ \n"," 3.885,00€\n\n"," 59.385,00€\n\n",518760,"Servicio","Abierto- Regulación armonizada","1 año (sin que su vigencia puede exceder de cuatro años)","1 año","50000000-5 \n50112000-3 \n50114000-7 \n50115000-4 \n","2020-05-04","28/10/20 \n","2020-10-28",null,null,50875,"3561.25","\n 54.436,25€","Patricia Molina Calero (Técnica de Obras y Maquinaria)","ALEJANDRO SUÁREZ MENDOZA","45.762.362K","  18/11/20","\n19/11/20"]
["Infraestructuras, Territorio y Sector Primario","Obras y Maquinaria","2018/9H\nSE0008/20","Servicio de mantenimiento preventivo y correctivo del parque móvil del Cabildo de Fuerteventura y otras entidades adscritas","FINALIZADO- Lote 2","Devuelto expte. a Obras y Maquinaria:09/07/2021","2020-02-24"," 45.000,00€\n\n","3.150,00€ \n\n","3. 48.150,00€\n\n",518760,"Servicio","Abierto- Regulación armonizada","1 año (sin que su vigencia puede exceder de cuatro años)","1 año","50000000-5 \n50112000-3 \n50114000-7 \n50115000-4 \n","2020-05-04","  23/10/20","2020-10-23",null,null," 39.375€\n","2756.25"," 42.131,25€\n","Patricia Molina Calero (Técnica de Obras y Maquinaria)","JUAN JOSE TEJERA MORENO \n"," 42.852.989X\n"," 18/11/20 \n","\n19/11/20"]
["Infraestructuras, Territorio y Sector Primario","Obras y Maquinaria","2018/9H\nSE0008/20","Servicio de mantenimiento preventivo y correctivo del parque móvil del Cabildo de Fuerteventura y otras entidades adscritas","FINALIZADO- Lote 3","Devuelto expte. a Obras y Maquinaria:09/07/2021","2020-02-24","8.450,00€ \n"," 591,50€\n\n"," 9.041,50€\n",518760,"Servicio","Abierto- Regulación armonizada","1 año (sin que su vigencia puede exceder de cuatro años)","1 año","50000000-5 \n50112000-3 \n50114000-7 \n50115000-4 \n","2020-05-04","2021-05-27","2021-07-09",null,null,8450,591.5,9041.5,"Patricia Molina Calero (Técnica de Obras y Maquinaria)","TALLERES ELÉCTRICO JUAN YANES, S.L.","B35665397","2021-06-09","2021-07-09"]
["Infraestructuras, Territorio y Sector Primario","Obras y Maquinaria","2018/9H\nSE0008/20","Servicio de mantenimiento preventivo y correctivo del parque móvil del Cabildo de Fuerteventura y otras entidades adscritas","Desierto- Lote 4","Devuelto expte. a Obras y Maquinaria:09/07/2021","2020-02-24","7.600,00€  \n\n"," 532,00€\n\n"," 8.132,00€\n\n",518760,"Servicio","Abierto- Regulación armonizada","1 año (sin que su vigencia puede exceder de cuatro años)","1 año","50000000-5 \n50112000-3 \n50114000-7 \n50115000-4 \n","2020-05-04",null,null,"20/07/2020 \n(Lote 4 y 6)"]
["Infraestructuras, Territorio y Sector Primario","Obras y Maquinaria","2018/9H\nSE0008/20","Servicio de mantenimiento preventivo y correctivo del parque móvil del Cabildo de Fuerteventura y otras entidades adscritas","FINALIZADO- Lote 5",null,"2020-02-24","9.600,00€ \n\n","672,00€\n\n"," 10.272,00€\n\n",518760,"Servicio","Abierto- Regulación armonizada","1 año (sin que su vigencia puede exceder de cuatro años)","1 año","50000000-5 \n50112000-3 \n50114000-7 \n50115000-4 \n","2020-05-04","2021-05-27","2021-07-09",null,null,9600,672,10272,"Patricia Molina Calero (Técnica de Obras y Maquinaria","TALLERES ELÉCTRICOS JUAN YÁNES, S.L.","B35665397","2021-07-01","2021-07-09"]
["Infraestructuras, Territorio y Sector Primario","Obras y Maquinaria","2018/9H\nSE0008/20","Servicio de mantenimiento preventivo y correctivo del parque móvil del Cabildo de Fuerteventura y otras entidades adscritas","Desierto- Lote 6",null,"2020-02-24","3.540,00€ \n"," 247,80€\n","3.787,80€\n",518760,"Servicio","Abierto- Regulación armonizada","1 año (sin que su vigencia puede exceder de cuatro años)","1 año","50000000-5 \n50112000-3 \n50114000-7 \n50115000-4 \n","2020-05-04",null,null,"20/07/2020 \n(Lote 4 y 6)"]
["Cultura, Patrimonio Histórico y Difusión Patrimonio Cultural","Patrimonio Cultural","2020/4343Q; SE003/21","EXPEDIENTE DE CONTRATACIÓN PARA EDICIÓN DE LIBROS; LOTE 1","Lote 1; FINALIZADO","Finalizado; Devuelto expte. al Servicio:31.05.2021","2021-03-09","14724,46\n"," 1030.71\n"," 15755.17\n","55004,94\n(todo el contrato)","SERVICIO","Abierto simplificado","No procede","9 MESES \n(cada lote)","79823000 \n79821100 \n 79970000 \n79822500 \n 79971200 ","2021-03-11","2021-05-19","2021-05-28",null,null,6990,489.3,7479.3,"Sebastián Rivera Pérez","PRODUCCIONES MIC. S.L.","B24301871","2021-05-26","2021-05-28"]
["Cultura, Patrimonio Histórico y Difusión Patrimonio Cultural","Patrimonio Cultural","2020/4343Q - SE0003/21","EXPEDIENTE DE CONTRATACIÓN PARA EDICIÓN DE LIBROS; LOTE Nº 2","Lote 2; FINALIZADO","Finalizado","2021-03-09"," 2734,49\n"," 191.41\n"," 2925.90\n","55004,94\n(todo el contrato)","SERVICIO","Abierto simplificado","No procede","9 MESES \n(cada lote)","79823000 \n79821100 \n 79970000 \n79822500 \n 79971200 ","2021-03-11","2021-05-19","2021-05-28",null,null,1650,115.5,1765,"Sebastián Rivera Pérez","GRAFO, S.A.","A48203996","2021-05-27","2021-05-28"]
["Cultura, Patrimonio Histórico y Difusión Patrimonio Cultural","Patrimonio Cultural","2020/4343Q - SE0003/21","EXPEDIENTE DE CONTRATACIÓN PARA EDICIÓN DE LIBROS; LOTE Nº 3","Lote 3; FINALIZADO","Finalizado","2021-03-09"," 8051,05\n"," 563.58\n"," 8614.63\n","55004,94\n(todo el contrato)","SERVICIO","Abierto simplificado","No procede","9 MESES \n(cada lote)","79823000 \n79821100 \n 79970000 \n79822500 \n 79971200 ","2021-03-11","2021-05-19","2021-05-28",null,null,2985,208.95,3193.95,"Sebastián Rivera Pérez","PRODUCCIONES MIC. S.L.","B24301871","2021-05-26","2021-05-28"]
["Cultura, Patrimonio Histórico y Difusión Patrimonio Cultural","Patrimonio Cultural","2020/4343Q - SE0003/21","EXPEDIENTE DE CONTRATACIÓN PARA EDICIÓN DE LIBROS; LOTE Nº 4","Lote 4; FINALIZADO","Finalizado","2021-03-09"," 23818.54\n","1667.30\n"," 25485.84\n","55004,94\n(todo el contrato)","SERVICIO","Abierto simplificado","No procede","9 MESES \n(cada lote)","79823000 \n79821100 \n 79970000 \n79822500 \n 79971200 ","2021-03-11","2021-05-19","2021-05-28",null,null,8475,593.25,9068.25,"Sebastián Rivera Pérez","PRODUCCIONES MIC. S.L.","B24301871","2021-05-26","2021-05-28"]
["Cultura, Patrimonio Histórico y Difusión Patrimonio Cultural","Patrimonio Cultural","2020/4343Q - SE0003/21","EXPEDIENTE DE CONTRATACIÓN PARA EDICIÓN DE LIBROS; LOTE Nº 5","Lote 5; FINALIZADO","Finalizado","2021-03-09"," 2449.70\n","171.48\n"," 2621.18\n","55004,94\n(todo el contrato)","SERVICIO","Abierto simplificado","No procede","9 MESES \n(cada lote)","79823000 \n79821100 \n 79970000 \n79822500 \n 79971200 ","2021-03-11","2021-05-19","2021-05-28",null,null,1200,84,1284,"Sebastián Rivera Pérez","GRAFO, S.A.","A48203996","2021-05-27","2021-05-28"]
["Cultura, Patrimonio Histórico y Difusión Patrimonio Cultural","Patrimonio Cultural","2020/4343Q - SE0003/21","EXPEDIENTE DE CONTRATACIÓN PARA EDICIÓN DE LIBROS; LOT Nº 6","Lote 6; FINALIZADO","Finalizado","2021-03-09","3226.70"," 225.87","3452.57","55004,94\n(todo el contrato)","SERVICIO","Abierto simplificado","No procede","9 MESES \n(cada lote)","79823000 \n79821100 \n 79970000 \n79822500 \n 79971200 ","2021-03-11","2021-05-19","2021-05-28",null,null,970,67.900000000000006,1037.9000000000001,"Sebastián Rivera Pérez","PRODUCCIONES MIC. S.L.","B24301871","2021-05-26","2021-05-28"]
["Sector Primario y Soberanía Alimentaria","Servicio de Agricultura, Ganadería y Pesca","2020/00011572L; SU002/21","SUMINISTRO DE UN SOFTWARE DE GESTION INTEGRAL PARA EL LABORATORIO AGROALIMENTARIO DE FUERTEVENTURA","FINALIZADO; A.C.;R.P. CONTRATOS",null,"2021-04-08",22545,1578.15,24123.15,22545,"Suministro","Abierto Simplificado art. 159.6 LCSP","No procede","Suministro: 4 meses \nServicio: 2 años","48920000-3\n72267000-4","2021-04-13","2021-05-17","2021-05-18",null,null,17584,1230,18814.88,"Atonio Mesa Hernández","SOPA SOFTWARE, S.A.","B83921361","2021-05-17","18/05/2021; Devuelto Servicio:21.05.2021"]
["Industria, Comercio, Transportes, Accesibilidad y Movilidad Sostenible","Servicio de Transportes y Comunicaciones","2020/00011143G; SE0008/21","CONTRATACIÓN DEL SERVICIO DE MANTENIMIENTO Y SOPORTE DE LA APLICACIÓN INFORMÁTICA DE GESTIÓN DEL SERVICIO DE TRANSPORTES DEL CABILDO","FINALIZADO; incluido A.C.","Trasladado al Servicio:22.07.2021","2021-04-29",58600,4102,62702,88600,"Servicio","Negociado sin publicidad, art. 168","períodos de 1 año hasta máximo 2 años","2 años","72263000-6 \n72267100-0\n48000000-8","03/05/2021 \nEnvío invitación","2021-06-07","2021-07-22",null,null,58600,4102,62702,"María del Pino Sánchez Sosa","INGENIUM LABOR, S.L.","B76637412","2021-06-09","2021-07-22"]
["Servicios Generales","Servicios Generales","2020/3135G \nPlyca SE0045/20","SERVICIO LIMPIEZA CENTROS CABILDO","FINALIZADO- Lote 1; Incluido A.C",null,"2020-12-01","616.543,24€\n","43.158,02€\n"," 659.701,26€\n","5.565.687,72 € \n(total contrato)\n","Servicio","Abierto regulación armonizada","Períodos de 1 año hasta máximo 3 prórrogas","1 año","90911200-8 \n90919200-4","2020-12-04","2021-03-19","2021-03-19",null,null,{"$f":"X53-W53","v":435800},30506,466306,"Don Agustín Noval Vázquez, Jefe de servicio de Servicios Generales","SERVICIOS AUXILIARES DE\nMANTENIMIENTO Y LIMPIEZA S.L","B-47037577","2021-04-22","2021-04-22"]
["Servicios Generales","Servicios Generales","2020/3135G \nPlyca SE0045/20","SERVICIO LIMPIEZA CENTROS CABILDO","FINALIZADO- Lote 2",null,"2020-12-01"," 105.690,73€\n"," 7.398,35€\n"," 113.089,08€\n","5.565.687,72 € \n(total contrato)\n","Servicio","Abierto regulación armonizada","Períodos de 1 año hasta máximo 3 prórrogas","1 año","90911200-8 \n90919200-4","2020-12-04","2021-03-19","2021-03-19",null,null,{"$f":"X54-W54","v":78800},5516,84316,"Don Agustín Noval Vázquez, Jefe de servicio de Servicios Generales","SERVICIOS AUXILIARES DE\nMANTENIMIENTO Y LIMPIEZA S.L","B-47037577","2021-04-22","2021-04-22"]
["Servicios Generales","Servicios Generales","2020/3135G \nPlyca SE0045/20","SERVICIO LIMPIEZA CENTROS CABILDO","FINALIZADO- Lote 3",null,"2020-12-01","345.541,01€\n"," 24.187,87€\n"," 369.728,88€\n","5.565.687,72 € \n(total contrato)\n","Servicio","Abierto regulación armonizada","Períodos de 1 año hasta máximo 3 prórrogas","1 año","90911200-8 \n90919200-4","2020-12-04","2021-03-19","2021-03-19",null,null,249800,17486,267286,"Don Agustín Noval Vázquez, Jefe de servicio de Servicios Generales","SERVICIOS AUXILIARES DE\nMANTENIMIENTO Y LIMPIEZA S.L","B-47037577","2021-04-22","2021-04-22"]
["Servicios Generales","Servicios Generales","2020/3135G \nPlyca SE0045/20","SERVICIO LIMPIEZA CENTROS CABILDO","FINALIZADO- Lote 4",null,"2020-12-01",91743.29,6422.03,98165.32,"5.565.687,72 € \n(total contrato)\n","Servicio","Abierto regulación armonizada","Períodos de 1 año hasta máximo 3 prórrogas","1 año","90911200-8 \n90919200-4","2020-12-04","2021-03-19","2021-03-19",null,null,71964.900000000009,5037.54,77002.44,"Don Agustín Noval Vázquez, Jefe de servicio de Servicios Generales","INTERSERVE FACILITIES SERVICES S.A.U.","A28506038","2021-04-16","2021-04-16"]
["Infraestructuras, Territorio y Sector Primario","Servicios Generales","2020/00000527T \nSE0050/20","MANTENIMIENTO DE LOS SISTEMAS DE PROTECCIÓN CONTRA INCENDIOS DE LOS CENTROS Y EDIFICIOS DEL CABILDO DE FUERTEVENTURA","FINALIZADO- Lote 1; Incluido A.C",null,"2020-12-14"," 26.812,95€\n","1.876,91€\n"," 28.689,86€\n",161213.74,"Servicio","Abierto","Lote 1: 3 prórrogas anuales \n","1 año","50413200-5","2020-12-15","2021-03-22","2021-03-22",null,null,{"$f":"X57-W57","v":19569.350000000002},1369.85,20939.2,"Don Jorge Hernández Hernández, Técnico del servicio de Servicios Generales","SEDANE 2000, S.L. "," B35661909","2021-04-20","2021-04-21"]
["Infraestructuras, Territorio y Sector Primario","Servicios Generales","2020/00000527T \nSE0050/20","MANTENIMIENTO DE LOS SISTEMAS DE PROTECCIÓN CONTRA INCENDIOS DE LOS CENTROS Y EDIFICIOS DEL CABILDO DE FUERTEVENTURA","FINALIZADO- Lote 2; Incluido A.C.",null,"2020-12-14",7389,517.23,7906.23,161213.74,"Servicio","Abierto"," \nLote 2: 2 prórrogas anuales ","1 año","50413200-5","2020-12-15","2021-03-22","2021-03-22",null,null,{"$f":"X58-W58","v":5911},413.77,6324.77,"Don Jorge Hernández Hernández, Técnico del servicio de Servicios Generales","INSTALACIONES Y OBRAS INSULARES, S.L.","B76084169","2021-04-20","2021-04-21"]
["Infraestructuras, Territorio y Sector Primario","Servicios Generales","2019/00012003V- SU0017/20","Suministro de sillas ergonómicas y mobiliario para puestos de pantalla de visualización de datos","FINALIZADO; A.C.","Desitió e incoó nuevamente; Trasladado al servicio:23.07.2021","2021-11-16",32967,3206.79,32274.69,28861.11,"Suministro","Abierto, simplificado",null,1,"39000000-2","2021-11-17","2021-06-14","2021-07-23",null,null,21600,1512,23112,"Agustín Noval","PANEL STANDARD, S.L.","B38288817","2021-07-02","2021-07-23"]
["Infraestructuras, Territorio y Sector Primario","Servicios Generales","2019/00031084P-SU0014/20","Suministro de material de oficina no inventariable, INTGRADO POR TRES LOTES","FINALIZADO - Lote 1; Incluido A.C.","Adjudicado Lote 1","2020-09-07","7.339,93 €\n","220,20€\n","7.560,13€\n","220338,56 \n(total contrato)","Suministro","Abierto- DOUE","3 prórrogas anuales","1 año","30190000-7","2020-09-10","Lote 1:  11/02/2021","Lote 1: 11/02/2021",null,null,"Lote 1: 7339.93 \n(máximo de gasto)","Lote 1: 220,20","Lote 1: 7560,13","Lote 1: Agustín noval Vázquez","Lote 1: Ofimax Canarias SL","Lote 1: B35255462","Lote 1:  10/03/2021","Lote 1: 10/03/2021"]
["Infraestructuras, Territorio y Sector Primario","Servicios Generales","2019/00031084P- SU0014/20","Suministro de material de oficina no inventariable","Desierto- Lote 2","  Lote 2 y 3 -Desierto","2020-09-07"," 16.767,38€\n","503,02€\n","17.270,40€\n","220338,56\n(total contrato)","Suministro","Abierto- DOUE","3 prórrogas anuales","1 año","30190000-7","2020-09-10",null,null,"Lote 2 \nLote 3\n17/11/2020"]
["Infraestructuras, Territorio y Sector Primario","Servicios Generales","2019/00031084P- SU0014/20","Suministro de material de oficina no inventariable","Desierto- Lote 3","  Lote 2 y 3 -Desierto","2020-09-07",30977.33,929.32,31906.65,"220338,56\n(total contrato)","Suministro","Abierto- DOUE","3 prórrogas anuales","1 año","30190000-7","2020-09-10",null,null,"Lote 2 \nLote 3\n17/11/2020"]
["Presidencia","Turismo","2019/31544P \nPlyca SE0033/20","CONTRATO DE SERVICIOS DE INGENIERIA PARA ESTUDIO DE PROYECTOS, VISITAS Y EMISION DE LOS INFORMES PRECEPTIVOS EN MATERIA TURISTICA ALOJATIVA DEL CABILDO DE FUERTEVENTURA","FINALIZADO - Lote 1; Incluido A.C.","Gasto del contrato ","2020-10-22"," 32.760,56€\n","2.293,24€\n","35.053,80€\n","101010,56 \n(total contrato)","Servicio","Abierto","No procede","1 año","71330000-0","2020-10-23","04/02/2021\n"," 10/02/2021\n",null,"Gasto del contrato ","32760,56€\n"," 2293,24€\n","35053,80€\n","Lidia Padilla Perdomo","Técnicos administradores fincas Fuerteventura Sl\n","B76105287 \n","01/03/2021\n","04/03/2021\n"]
["Presidencia","Turismo","2019/31544P \nPlyca SE0033/20","CONTRATO DE SERVICIOS DE INGENIERIA PARA ESTUDIO DE PROYECTOS, VISITAS Y EMISION DE LOS INFORMES PRECEPTIVOS EN MATERIA TURISTICA ALOJATIVA DEL CABILDO DE FUERTEVENTURA","FINALIZADO - Lote 2","Gasto del contrato ","2020-10-22",68250,4777.5,73027.5,"101010,56\n(total contrato)","Servicio","Abierto","No procede","1 año",null,"2020-10-23","2021-01-27","2021-02-10",null,"Gasto del contrato ",68250,4777.5,73027.5," Lidia Padilla Perdomo","3AIS SCP","J76173210"," 18/02/21","2021-02-19"]
["Cultura, Patrimonio Histórico y Difusión Patrimonio Cultural","Palacio de Formación y Congresos","2019/00015377X\nSE0018/20","Contrato de servicios - Asistencia a los usuarios en salas y espacios del PFCF","FINALIZADO; A.C.",null,"2020-06-17",52443.18,{"$f":"J65-H65","v":3671.0199999999968},56114.2,104886.36,"Servicio","Abierto","1 año","1 año","79342320-2","2020-06-22","2021-03-24","2021-03-25",null,"Gasto del contrato ",{"$f":"X65-W65","v":52443.18},3671.02,56114.2,"Horacio Umpierrez Sánchez, Gerente del Palacio de Formación y\nCongresos de Fuerteventura","UTE ACTIVA","U76325539","2021-04-20","2021-04-21"]
[" Gobierno Abierto, Información, Transparencia, Participación\nCiudadana, Sección de Oficinas Integradas de\nAtención al Ciudadano, Nuevas Tecnologías e\nInformática","Información, Transparfencia y Participación Ciudadana","2020/00028866V\nSE0005/21\n","Servicios postales de notificaciones administrativas del Cabildo Insular de Fuerteventura.","FINALIZADO; A.C. R.P. CONTRATOS","Correos- no lotes","2021-03-31",30000,2100,32100,60000,"Servicio","Negociado sin publicidad","1 año","1 año","64110000-0","2021-04-09","2021-04-27","2021-04-28",null,"Gasto del contrato ",{"$f":"X66-W66","v":29906.542056074766},{"$f":"X66*7/107","v":2093.4579439252338},32000,"Dolores Juan López Tomazety, Jefa de Servicio de Transparencia","SOCIEDAD ESTAL DE CORREOS S.A","A83052407","2021-05-21","2021-05-24"]
["Área de Cultura, Patrimonio Histórico, Innovación, Transparencia y Participación Ciudadana","Unidad de Gestión de Cultura","2020/00022901D\nSU0003/21; 2 lotes","SUMINISTRO EN RÉGIMEN DE ALQUILER, INSTALACIÓN Y EJECUCIÓN DE EQUIPOS DE SONIDO, ILUMINACIÓN, AUDIOVISUALES Y ESTRUCTURAS","FINALIZADO; A.C.","Trasladado expte al Servicio","2021-04-15",464482.24,32513.759999999998,496996,{"$f":"H67*4","v":1857928.96},"Suministro","Abierto regulación armonizada","año (1) hasta un máximo de tres (3) prórrogas","1 año","32322000-6\n32342410-9\n51313000-9 \n51314000-6\n71318100-1 \n92370000-5 \n51310000-8","2021-04-16","2021-06-25","2021-06-28",null,null,346875.35,24281.27,346875.35,"Domingo Curbelo Herrera","AUDIO LUZ CANARIAS, S.L.","B35294743","2021-06-25","2021-06-28"]
["Área Insular de Cultura,\nPatrimonio Histórico, Innovación,\nTransparencia y Participación Ciudadana","Centro de Arte y Exposiciones","2021/00002460Z\nSU0004/21\n","SUMINISTRO  DE MATERIAL, INSTALACIÓN, MONTAJE, DESMONTAJE, PUESTA EN MARCHA ASÍ COMO LA ASISTENCIA TÉCNICA Y MANEJO DE LOS EQUIPOS TÉCNICOS PROFESIONALES DE IMAGEN, SONIDO, ILUMINACIÓN, AUDIOVISUALES Y AUXILIARES NECESARIOS PARA LA CORRECTA EJECUCIÓN DE LAS ACTIVIDADES CULTURALES PROGRAMADAS POR EL PALACIO DE FORMACIÓN Y CONGRESOS DE FUERTEVENTURA ","FINALIZADO; A.C.","Trasladado expte. Servicio","2021-04-20","55,736,59€","3,901,56€","59,638,15€","55,736,59€","Suministro","Abierto Simplificado art. 159.6 LCSP","No procede","Según eventos hasta 09/07/2021","32322000-6 \n32342410-9\n 51313000-9 \n 71318100-1 \n 92370000-5","2021-04-22","2021-05-12","2021-05-14",null,null,{"$f":"X68-W68","v":44589.27},3121.25,47710.52,"Doña Catalina Carrascosa Molino, Técnica del Palacio de Formación y\nCongresos de Fuerteventura","AUDIOLUZ CANARIAS S.L.","B35294743","2021-05-13","2021-05-14"]
["Presidente del Cabildo","Servicios Generales","2020/00024130L\nSE0007/21","SEGURO DE ACCIDENTES COLECTIVO PARA EL PERSONAL DEL CABILDO DE FUERTEVENTURA, ORGANISMOS AUTÓNOMOS Y ENTES DEPENDIENTES","FINALIZADO; A.C.","Devuelto expte. a Servicio Generales: 28.05.2021","2021-04-26",10000,0,10000,48000,"Servicio","Abierto simplificado","1 año hasta máximo 3 prórrogas","1 año","66512000-2\n66512100-3","2021-04-27",null,"25.05.2021","2021-05-25"]
["Presidente del Cabildo","Servicios Generales","2020/00024371F\nSE0007/21","SEGURO DE LOS VEHÍCULOS A MOTOR DEL CABILDO DE FUERTEVENTURA, ORGANISMOS AUTÓNOMOS Y ENTES DEPENDIENTES","FINALIZADO; A.C.","Traslado expte. a Servicos         Generales: 18.08.2021","2021-04-28",43500,0,43500,208800,"Servicio","Abierto","1 año hasta máximo 3 prórrogas","1 año","66510000-8\n66514110-0","2021-04-29","2021-07-08","2021-07-09",null,null,40890.959999999999,0,40890.959999999999,"Agustín Noval Vázquez","MAPFRE ESPAÑA COMPAÑÍA SEGUROS Y REASEGUROS, S.A.","A28141935","2021-08-06","2021-08-18"]
["Presidente del Cabildo","Servicios Generales","2020/27879L\nSU0005/21","SUMINISTRO DE EXTINTORES PARA ALGUNOS CENTROS DEL CABILDO DE FUERTEVENTURA","FINALIZADO; A.C.","Trasladado al Servicio:16.07.2021","2021-05-07",5222.6899999999996,365.59,5588.28,5222.6899999999996,"Suministro","Abierto Simplificado; Supersimplificado ","No procede","1 mes ","35111000-5; Equipo extinción incendios","2021-05-10","2021-07-12","12.07.2021",null,null,{"$f":"X71-W71","v":2819.6},197.37,3016.97,"Jorge Hernández Hernández, Técnica de Servicios Generales","ELECTRIMEGA, S.L.U,","B76210632","2021-07-13","16.07.2021"]
["Educación y Juventud+A110:U110","Escuela Insular de Música","2020/21037P\nSU0006/21","Suministro de material inventariable – instrumentos musicales para la Escuela Insular de\nMúsica de Fuerteventura","FINALIZADO; Devuelto al Servicio:21.10.2021; A.C.","Este contrato se envío al T. Administrativo de Contratos y se adjudico por Consejo G. el13.08.2021; Se resolvio recurso por el Tribunal Administrativo Contratos","2021-05-10",107423.01,7519.61,114942.62,107423.01,"Suministro","Abierto Simplificado","No procede","30 días naturales","37310000-4\n37312000-8\n37313000-5\n37314000-2\n37316000-6\n37315000-9\n37320000-7\n37321700-1\n39112000-0","2021-05-12","2021-07-16","2021-07-22",null,null,90235.33,6316.47,96551.8,"Javier Santos Alocén ","HAZEN DISTRIBUIDORA GENERAL PIANOS,S.A","A28179836","2021-07-21","2021-07-23"]
["Servicios Generales","Servicios Generales","2020/12845G;  SE0011/21             ","Servicio mantenimiento instalaciones fotovoltaicas de los edificios del Cabildo Insular de Fuerteventura","FINALIZADO; A.C.","Devuelto al Servicio:13.08.2021","2021-05-12",8866.33,620.64,9486.9699999999993,8866.33,"Servicio","Abierto simplificado (Supersimplificado)",12,"1 año","5000000-5; 50532000-3","2021-05-24","2021-08-06","2021-08-13",null,null,6185,433.65,"6..628,65","Javier Hernández Hernández","SINCROLUX, S.L.","B762277776","12.08.2021","2021-08-13"]
["Asuntos Sociales, Sanidad, Consumo e Inmigración","Asuntos Sociales, Sanidad, Consumo e Inmigración","2020/00029546F\nSE0010/21","CONTRATO ADMINISTRATIVO DE SERVICIOS PARA AUXILIAR AL CABILDO DE FUERTEVENTURA EN LA GESTIÓN DE LOS CENTROS DE PROTECCIÓN DE MENORES. ","FINALIZADO; A.C.; INCLUIDA DOCUMENT. A.c.","Acuerdo del Consejo de Gobierno Insular- aprobación; Trasladado a Servicios Sociales:30.11.2021","2021-05-10",11415770.1,0,11415770.1,13001384.699999999,"Servicio","Abierto regulación armonizada","No procede","4 años ","85311000-2\n85311300-5","2021-05-14","2021-10-11","2021-11-17",null,null,11016218.5,0,null,"Auxiliadora Cabrera Padilla y Nereida Gil Betancor","ASOCIACIÓN SOIDARIA MUNDO NUEVO, S.L.","G35827765","2021-11-24","2021-11-26"]
["Presidente del Cabildo","Servicios Generales","2021/1573R, SU0008/21","SUMINISTRO DE GEL ANTISÉPTICO DE MANOS COMO MEDIDA PREVENTIVA FRENTE AL COVID-19","FINALIZADO; A.C."," Trasladado al Servicio:10.08.2021","2021-05-13",5217,156.51,5373.51,10434,"Suministro","Abierto Simplificado art. 159.6 LCSP","1 año","30 días desde la formallización del contrato","33741300-9","2021-05-20","2021-08-06","2021-08-10",null,null,1959.25,58.78,2018.03,"Agustín Noval Vázquez","GUERRA Y FERNÁNDEZ, S.L.","B35045715","2021-08-08","2021-08-10"]
["Presidencia Cabildo","Agricultura","2020/29262E; SU0013/21","SUMINISTRO DE REACTIVOS Y MATERIALES DE LOS EQUIPOS TEMPO Y MINIVIDAS, MARCA \"BIOMERIEUX\", DEL LABORATORIO AGROALIMENTARIO DE FUERTEVENTURA.","FINALIZADO; A.C.",null,"2021-06-02",41177.4,1235.32,42412.72,41177.4,"SUMINISTRO","P/ NEGOCIADO SIN CONCURRENCIA",null,4,"3369500-0; 33696300-8","Invitación:09.06.2021","2021-08-11","2021-12-17",null,null,41177.4,1235.32,42412.72,"Antonio Mesa Hernández","BIOMERIUX ESPAÑA, S.A.","A28664589","2021-08-25","2021-12-17"]
["Empleo, Educación y Juventud","Educación y Juventud","2021/00006004Q; SU0007/21"," Contrato de suministro, montaje e instalación de mobiliaro para el Albergue Juvenil de Tefía.","FINALIZADO; A.C.","SUPERSIMPLIFICADO","2021-05-12",59936.87,4195.58,64132.45,59936.87,"Suministro","Abierto Simplificado art. 159.6 LCSP","No procede","3 meses","39143111 - Somieres\n39100000 - Mobiliario\n39143210 - Mesas de comedor\n39112000 - Sillas\n","2021-05-13","2021-06-10","2021-06-16",null,null,47545,3328.15,50873.15,"Doña Jessica Reyes espinel, Técnica de Educación y Juventud","INDUSTRIAS HIDRAULICAS PARDO, S.L.,","B50057322","2021-06-10","2021-06-14"]
["Cultura, Patrimonio Histórico y Difusión Patrimonio Cultural","Cultura","2020/00029035W; SU0018/20\n","ADQUISICIÓN DE LA OBRA DE ARTE ÚNICA \"CABRA AL VIENTO\" ESCULPIDA POR EL ARTISTA JUAN MIGUEL CUBAS- ","FINALIZADO; A.C.","Trasladado al Servicio:21.10.2021","2020-12-14",43689.33,1310.67,45000,43689.33,"Suministro","Negociado sin publicidad","No procede","3 meses","92311000-4-obras de arte","2020-12-14","2021-06-10","2021-10-21",null,null,43689.33,1310.67,45000,"D. Horacio Umpierrez Sánchez, Gerente del Palacio de Formación y Congresos","Juan Miguel Cubas Sánchez","42886653W","2021-10-20","2021-10-21"]
["Infraestructuras, Territorio y Sector Primario","Infraestructuras","2019/38607X - LOTE 1","LOTE Nº 1: DIRECCION FACULTATIVA Y RESPONSABLE DEL COTRATO  DE OBRAS  del contrato denomnado \"Dirección facultativa de la obra, de las instalaciones y la coordinación de seguridad y salud de la obra correspondiente al proyecto denominado RESIDENCIA Y CENTRO DE DÍA PARA PERSONAS MAYORES DEPENDIENTES, en Puerto del Rosario\"","FINALIZADO; A.C.","ABIERTO SIMPLIFICADO","2020-07-30",75348.67,5274.41,{"$f":"H79+I79","v":80623.08},99463.77,"Servicio","Abierto Simplificado","No procede","13 MESES","Lote 1: 71240000-2   \n\n\n","2020-08-31","2021-06-23",null,null,null,{"$f":"X79-W79","v":29105.989999999998},2037.42,31143.41,"Juan Carlos Pérez Sánchez, Arquitecto, Ana M. Vázquez Rodríguez, Arquitecta Técnica y manuel Martínez Calaco, Ingeniero Industrial","Pedro Sicilia Martín","43822124V","2021-06-29","2021-11-22"]
["Infraestructuras, Territorio y Sector Primario","Infraestructuras","2019/38607X LOTE 2","LOTE Nº 2: COORDINACION DE LA SEGURIDAD Y SALUD DE LAS OBRAS  del contrato denomnado \"Dirección facultativa de la obra, de las instalaciones y la coordinación de seguridad y salud de la obra correspondiente al proyecto denominado RESIDENCIA Y CENTRO DE DÍA PARA PERSONAS MAYORES DEPENDIENTES, en Puerto del Rosario\"","FINALIZADO; A.C.","ABIERTO SIMPLIFICADO","2020-07-30",24115.1,1688.06,{"$f":"H80+I80","v":25803.16},99463.77,"Servicio","Abierto Simplificado","No procede","13 MESES","Lote 1: 71240000-2 y    \n\n71317200-5\n","2020-08-31","2021-06-23",null,null,null,{"$f":"X80-W80","v":8612.8000000000011},602.9,9215.7000000000007,"Juan Carlos Pérez Sánchez, Arquitecto, Ana M. Vázquez Rodríguez, Arquitecta Técnica y manuel Martínez Calaco, Ingeniero Industrial","ARANA Y MUÑOZ EDITA S.L.","B35958958","2021-06-29","22/112021"]
["Cultura, Patrimonio Histórico y Difusión Patrimonio Cultural","Cultura","2020/00022901D; SU0003/21\nLOTE Nº 1","LOTE 1: Grandes espacios escénicos y/o culturales del contrato SUMINISTRO EN RÉGIMEN DE ALQUILER, INSTALACIÓN Y EJECUCIÓN DE EQUIPOS DE SONIDO, ILUMINACIÓN, AUDIOVISUALES Y ESTRUCTURAS, ASÍ COMO LA ASISTENCIA TÉCNICA DE PROFESIONALES, NECESARIOS PARA LA EJECUCIÓN DE LAS ACTIVIDADES PROGRAMADAS POR EL CABILDO INSULAR DE FUERTEVENTURA","FINALIZADO; A.C.","Abierto ","2021-04-15",464482.24,32513.759999999998,{"$f":"H81+I81","v":496996},2159966.36,"Suministro","Abierto","1 año hasta máximo 3 prórrogas","12 MESES",null,null,"2021-06-25","2021-06-28",null,null,346875.35,24281.27,{"$f":"V81+W81","v":371156.62},"Domingo Curbelo Herrera, Técnico de logística y apoyo del servicio de Cultura","AUDIOLUZ CANARIAS S.L","B35294743","2021-06-25","2021-06-28"]
["Cultura, Patrimonio Histórico y Difusión Patrimonio Cultural","Cultura","2020/00022901D; SU0003/21\nLOTE Nº 2","LOTE N2: MEDIANOS Y PEQUEÑOS ESPACIOS ESCÉNICOS Y/O CULTURALES DEL CONTRATO SUMINISTRO EN RÉGIMEN DE ALQUILER, INSTALACIÓN Y EJECUCIÓN DE EQUIPOS DE SONIDO, ILUMINACIÓN, AUDIOVISUALES Y ESTRUCTURAS, ASÍ COMO LA ASISTENCIA TÉCNICA DE PROFESIONALES, NECESARIOS PARA LA EJECUCIÓN DE LAS ACTIVIDADES PROGRAMADAS POR EL CABILDO INSULAR DE FUERTEVENTURA","FINALIZADO; A.C.","Abierto ","2021-04-15",75509.350000000006,5285.65,80795,2159966.36,"Suministro","Abierto","1 año hasta máximo 3 prórrogas","12 MESES",null,null,"2021-06-25",null,null,null,64182.95,4492.8100000000004,{"$f":"V82+W82","v":68675.759999999995},"Domingo Curbelo Herrera, Técnico de logística y apoyo del servicio de Cultura","MARAUDIO CANARIAS, S.L.","B76330968","2021-06-25","2021-06-28"]
["Infraestructuras, Territorio y Sector Primario","Obras y Maquinaria","2018/9H\n","Servicio de mantenimiento preventivo y correctivo del parque móvil del Cabildo de Fuerteventura y otras entidades adscritas","Adjudicado- Lote 3",null,null,null,null,null,null,null,null,null,null,null,null,null,null,null,null,null,null,9041.5]
["Infraestructuras, Territorio y Sector Primario","Obras y Maquinaria","2018/9H\n","Servicio de mantenimiento preventivo y correctivo del parque móvil del Cabildo de Fuerteventura y otras entidades adscritas","Adjudicado- Lote 5",null,null,null,null,null,null,null,null,null,null,null,null,null,null,null,null,null,null,10272]
["Cultura, Patrimonio Histórico y Difusión Patrimonio Cultural","Cultura","2021/00009542N; SE0013/21","CONTRATO DE SERVICIOS TÉCNICOS DE SONIDO, ILUMINACIÓN, AUDIOVISUALES, ESTRUCTURAS Y TRABAJOS AUXILIARES PARA EL FESTIVAL FUERTEVENTURA EN MÚSICA 2021","FINALIZADO","no celebrado","2021-06-16",97834.51,6848.42,104682.93,97834.51,"SERVICIO","ABIERTO, URGENTE",null,"2 DIAS",null,"2021-06-11","2021-06-25","2021-06-29",null,null,{"$f":"X85-W85","v":97800},6846,104646,null,"AUDIOLUZ CANARIAS S.L","B35294743"]
["Cultura, Patrimonio Histórico y Difusión Patrimonio Cultural","Cultura","2021/00009543J; OB0014/21","CONTRATO DE SERVICIOS COMPLEMENTRIOS Y/O AUXILIARES ASÍ COMO LA LOGÍSTICA PARA EL FESTIVAL FUERTEVENTURA EN MÚSICA 2021","FINALIZADA; No se hizo","Trasladado al Servicio:02.07.2021","2021-06-25",94669.62,6626.87,101296.49,null,"SERVICIOS","ABIERTO, URGENCIA",null,null,null,null,null,null,null,null,{"$f":"X86-W86","v":83619},5853.33,89472.33,"HORACIO UMPIERREZ","MAXAUDIO EVENTOS Y PRODUCCIONES S.L","B76262534"]
["Infraestructuras, Territorio y Sector Primario","Infraestructuras","2019/2041L- OB003/21\n","SUSTITUCION DE CÉSPED ARTIFICIAL EN CAMPOS DE FUTBOL 1 Y 2 \"FRANCISCO MELIAN\"; LOTE Nº 1","FINALIZADO; A.C. Incluidad documentación expte.","Devuelto al Servicio Infra:26.08.2021","2021-05-21",724719.09,50730.34,{"$f":"H87+I87","v":775449.42999999993},1207550.01,"OBRA","Abierto Simplificado","No procede","2 MESES","45212290-5 Reparación y mantenimiento de instalaciones deportivas\n39293400-6 Césped artificial\n","2021-05-26","2021-08-24","2021-08-26",null,null,499766.28,34983.64,{"$f":"V87+W87","v":534749.92000000004},"María del Pino González Gordillo","OBRAS Y PAVIMENTOS ESPECIALES, S.A. (O.P.S.A.)","A28410850","2021-08-25","2021-08-26"]
["Infraestructuras, Territorio y Sector Primario","Infraestructuras","2019/2041L- OB003/21\n","SUSTITUCION DE CÉSPED ARTIFICIAL EN CAMPOS DE FUTBOL 1 Y 2 \"FRANCISCO MELIAN\"; LOTE Nº 2","FINALIZADO; A.C.; R.P. CONTRATOS","R. P. contratos ok.","2021-05-21",482830.92,33798.160000000003,{"$f":"H88+I88","v":516629.07999999996},1207550.01,"OBRA","Abierto Simplificado","No procede","2 MESES","45212290-5 Reparación y mantenimiento de instalaciones deportivas\n39293400-6 Césped artificial\n","2021-05-26","2021-08-11","2021-08-26",null,null,339430.14,23760.11,{"$f":"V88+W88","v":363190.25},"María del Pino González Gordillo","OBRAS Y PAVIMENTOS ESPECIALES, S.A. (O.P.S.A.)","A28410850","2021-08-25","2021-08-26"]
["Cultura, Patrimonio Histórico y Difusión Patrimonio Cultural","Centro Bibliotecario","2020/00025785H; SE0012/21"," Servicios de Organización y Ejecución de la 31ª edición de la Feria Insular del Libro de Fuerteventura 2021","FINALIZADO; A.C.","Devuelto al Servicio: 31.08.2021","2021-05-24",44915.25,3143.75,48059.32,53898.3,"SERVICIO","Abierto","No procede","15 días","79952999-0; 79952199-3","2021-05-27","2021-08-10","2021-08-30",null,null,43415.25,3039.07,46454.32,"Elsa Quesada Aguiar","AUDIOLUZ CANARIAS S.L","B35294743","2021-08-26","2021-08-30"]
["Infraestructuras, Territorio y Sector Primario","Infraestructuras","2021/1890L- SU0010/21","Suministro de material oficina no inventariable. Dos lotes","FINALIZADO; A.C.",null,"2021-05-31",null,null,null,160639.32999999999,"suministro","abierto ","3, de 12 meses","12 meses","30190000-7","2021-06-03","2021-09-21","2021-10-19",null,null,null,null,null,"Agustín Noval  Vázquez"]
["Infraestructuras, Territorio y Sector Primario","Infraestructuras","2021/1890l lote 1","Carpetas, sistemas de archivo y manipulados de papel","Finalizado; A.C.",null,null,17993.04,638.15,17993.04,null,null,null,null,null,null,null,"2021-09-21",null,null,null,17993.04,638.15,17993.04,null,"LIBRERÍA PAPELERÍA ANDRÓMEDA, S.L.","B35296029","2021-10-13","        26/11/2021"]
["Infraestructuras, Territorio y Sector Primario","Infraestructuras","2021/1890L lote 2","Papel ","FINALIZADO; A.C.",null,null,22771.3,966.35,23771.3,null,null,null,null,null,null,null,null,null,null,null,21838.6,966.35,22804.95,null,"LIBRERÍA PAPELERÍA ANDRÓMEDA, S.L.","B35296029","2021-11-26","2021-11-26"]
[" Gobierno Abierto, Información, Transparencia, Participación\nCiudadana, Sección de Oficinas Integradas de\nAtención al Ciudadano, Nuevas Tecnologías e\nInformática","Información, Transparfencia y Participación Ciudadana","2020/00031517T; SE0025/21","MANTENIMIENTOS AYTOS 2021-2025","FINALIZADO; A.C.","Responsable: Francisco Padilla; Devuelt expte. Servicio: 15/10/2021","2021-06-28",{"$f":"J93-I93","v":134960},9447.2000000000007,144407.20000000001,134960,"SERVICIO","Negociado sin publicidad","No procede","4 años ","72267000-4 Servicios de mantenimiento y reparación de software","2021-07-05","2021-08-10","2021-10-15",null,null,{"$f":"X93-W93","v":134960},9447.2000000000007,144407.20000000001,"Francisco José Padilla Castillo","AYTOS SOLUCIONES INFORMÁTICAS S.L.U.,","B41632332","2021-09-07","2021-10-15"]
["Cultura, Patrimonio Histórico y Difusión Patrimonio Cultural","Centro Bibliotecario","2020/00030641K; SE0021/21","Servicio de Dinamización a la lectura de la sala infanti y juvenil del Centro Bibliotecario Insular","FINALIZADO; A.C.","Devuelto al Servicio Centro Bibliotecario:15/10/2021","2021-06-23",27472,1923.04,29395.040000000001,27472,"Servicio","Abierto","una, de 12","12 meses","92300000-4,             92331210-5\n92500000-6","2021-06-25","2021-09-21","2021-10-15",null,null,23084.62,1615.92,24700.54,"Elsa Quesada Aguiar","OCIDE ASESORES, S.L.","B35530614","2021-10-06","2021-10-15"]
["Presidencia, Planificación, Hacienda, Promoción Económica","Planificación y Proyectos Estratégicos","2020/6571J; SE00438/21","Servicio de gestión, organización, coordinación, evolución y mantenimiento plataforma de gestión Intranet-Extranet","FINALIZADO; A.C.","Trasladado expediente a Planificación y Proyectos: 09/12/2021","2021-08-13",60595.26,4241.67,64836.93,60595.26,"Servicio","Abierto Simplificado",null,"11 meses","79412000-5","2021-08-23","2021-12-09","2021-12-15",null,null,54000,3780,57780,"Carlos David Gutiérrez Oramas","ALSTENDA, S.L.","B35980481","2021-12-09","2021-12-15"]
["Infraestructuras, Territorio y Sector Primario","Infraestructuras","2020/24948D/ 2 lotes; SE0016/21","Servicio para la dirección facultativa y coordinación de  Segurdidad y salud obra \"Sustitución césped artificial en Campo de Fútbol 1 y 2 Francisco Melián, 2 lotes","FINALIZADO; A.C.","Trasladado al Servicio: 19.10.2021","2021-06-15",11441.12,801.3,12248.42,11441.12,"Servicico","Simplificado",null,"2 meses","71240000-2","2021-06-16","2021-09-27","2021-10-19",null,null,null,null,null,"Pino Gonzalez Gordillo"]
[null,null,"2020/24948D/ 1 ","Servicio para la dirección facultativa y coordinación de  Segurdidad y salud obra \"Sustitución césped artificial en Campo de Fútbol 1Francisco Melián, lotes 1","FINALIZADO; A.C.",null,null,null,null,6546.64,458.27,null,null,null,null,null,null,null,null,null,null,4333.33,303.33,4636.66,null,"Luis Beltran Padilla Carmona","42.889.770Z","06.10.2021","19.10.2021"]
[null,null,"2020/24948D/ 2 lotes","Servicio para la dirección facultativa y coordinación de  Segurdidad y salud obra \"Sustitución césped artificial en Campo de Fútbol 1Francisco Melián, lotes 2","FINALIZADO; A.C.",null,null,null,null,4900.4799999999996,343.03,null,null,null,null,null,null,null,null,null,null,3333.33,233.33,3566.66,null,"Luis Beltran Padilla Carmona","42.889.770Z","06.10.2021","19.10.2021"]
["Infraestructuras, Territorio y Sector Primario","Servicio de Infraestructuras","2020/00025540A -OB0008/21","PICOS (20-24) - PISTA DE ATLETISMO Y EDIFICACIÓN ANEXA EN CORRALEJO, T.M. DE LA OLIVA","FINALIZADO; A.C. ; R. P. CONTRATOS ","Incluida t.C. documentación, Trasladado añ Servicio 18.11.2021 ","2021-06-30",{"$f":"J99-I99","v":2401084.83},168075.94,2569160.77,{"$f":"H99","v":2401084.83},"OBRA","ABIERTO","No procede","12 MESES","45212000-6 Trabajos de construcción de edificios relacionados con los deportes.\n45212200-8 Trabajos de construcción de instalaciones deportivas","2021-06-30","2021-10-27","2021-11-18",null,null,{"$f":"X99-W99","v":2004905.8300000003},140343.41,2145249.2400000002,"Doña María del Pino González Gordillo y Juan Carlos Pérez Sánchez","UTE PISTA ATLETISMO CORRALEJO","U16853566","2021-11-18","2021-11-18"]
["Cultura, Patrimonio Histórico y Difusión Patrimonio Cultural","Museo Arqueológico Insular","2021/00006999E- SU0019/21","SUMINISTRO E INSTALACIÓN DE MOBILIARIO PARA EL ALMACÉN DE FONDOS DEL MUSEO ARQUEOLÓGICO DE FUERTEVENTURA","FINALIZADO; A.C.","Finalizado; Trasladado al Servicio:04.11.2021","2021-08-31",{"$f":"J100-I100","v":56418.23},3949.27,60367.5,56418.23,"Suministro","SUPERSIMPLIFICADO","No procede","2 MESES","39131100 Estanterías de archivo","2021-09-07","2021-10-20","04.11.2021",null,null,{"$f":"X100-W100","v":49870},3490.9,53360.9,"Don Isidoro Hernández Sánchez","JOSÉ MANUEL GARREGAL SILVA S.L","B15720436","2021-10-29","04.11.2021"]
["DEPORTES Y CAZA","Servicio de Deportes","2019/35298J, SU0018/21","Suministro de ropa deportiva para los representantes de la isla de Fuerteventura en los “Campeonatos de Canarias” de las competiciones deportivas en edad escolar, en el ámbito autonómico.","FINALIZADO; A.C.","Trasladado al Servicio:03.11.2021","2021-09-03",{"$f":"J101-I101","v":18325},1282.75,19607.75,18325,"Suministro","SUPERSIMPLIFICADO","No procede","4 MESES","18412000-0 Ropa deportiva","2021-09-06","2021-10-27","03.11.2021",null,null,12590,"EXENTO",12590,"Don Carlos Javier Chocho Cabrera","CUSTOM SPORWEAR, S.L","B76279322","2021-10-28","03.11.2021"]
["Políticas Sociales, Formación y Recursos Humanos","Servicio de Asuntos Sociales, Sanidad, Consumo e Inmigración","2021/00002626L; SE0017/21","CONTRATO ADMINISTRATIVO DE SERVICIO DE MANTENIMIENTO Y CONSERVACIÓN DE LOS EQUIPOS E INSTALACIONES DE LA PISCINA TERAPÉUTICA PARA PERSONAS CON DISCAPACIDAD DEL CABILDO DE FUERTEVENTURA","FINALIZADO; A.C."," TRASALADO AL SERVICIO:04.11.2021","2021-06-14",41263.120000000003,2888.42,44151.54,82526.240000000005,"SERVICIO","SIMPLIFICADO","dos posibles prórrogas de seis meses cada una.","12 MESES","45259000-7/ 5000000-5 Reparación y mantenimiento de instalaciones","2021-06-16","2021-10-27","04.11.2021",null,null,{"$f":"X102-W102","v":33629.440000000002},2354.06,35983.5,"María José Cruz Cruz","GEINVERSTEC INSTALACIONES","B35929736","2021-11-03","04.11.2021"]
["Empleo, Educación y Juventud","Servicio de Educación y Juventud","2021/00005363L; SE0031/21","Contratación del servicio de producción y ejecución de la gala y exposiciones de MaxoArte Joven 2021","FINALIZADO;  A.C.","Devuelto al Servicio:08.11.2021","2021-08-20",{"$f":"J103-I103","v":35101.729999999996},2457.12,37558.85,35101.730000000003,"Servicio","Abierto Simplificado art. 159.6 LCSP; Supersimplificado","No procede",2,"79952000 Servicios de Eventos \n79952100-3 Organización de eventos culturales.\n79956000 Servicio de organización de ferias y exposiciones\n\n","2021-08-25","2021-11-03","2021-11-08",null,null,{"$f":"X103-W103","v":27379.350000000002},1916.55,29295.9,"Doña Jessica Reyes espinel, Técnica de Educación y Juventud","LA MALETA GESTORES DE LA INNOVACIÓN, S.L.","B76279967","2021-11-04","2021-11-08"]
["RESIDUOS Y GESTION AMBIENTAL","Aguas y residuos","2021/1965W- SE0030/21","Servicio limpieza del Complejo Ambietal de Zurita y su entorno reservado a Centro Especial de Empleo de iniciativa social","FINALIZADO;  A.C.","Trasladado al servicio:08.11.2021","2021-08-18",58498.239999999998,4094.88,62593.120000000003,58498.239999999998,"Servicio","Abierto","2, de 12 m",12,"90910000-9; 71421000-5","2021-08-24","2021-11-04","2021-11-08",null,null,51000,3360,51360,"Gemma Mosquera Paz","GRANJA ADISFER, S.L.","B35373828","2021-11-05","2021-11-08"]
[null,"Servicio de Infraestructuras","2019/13889V; OB0004/21","Zona de recreo y deportiva en Guisguey. T.M. de Puerto Rosario","FINALIZADO; A.C., R.P. CONTRATOS","Trasladado al Servicio extpe.:11.01.2022","2021-05-31",148888.19,10422.17,159310.35999999999,148888.19,"Obra","Simplificado",null,"6 meses","45212200-8","2021-06-02","2021-10-29","2021-11-10",null,null,137721.57999999999,9640.51,147362.09,"Jua  Carlos Pérez Sánchez; Ana Vázquez; Manuel Martínez Galaco","CORORASA","A35091719","2021-11-10","2021-11-10"]
["Servicios Generales","Servicios Generales","2021/00005203C; SE0022/21","SERVICIO DE CONSERVACIÓN, MANTENIMIENTO Y ASISTENCIA TÉCNICA DE LAS INSTALACIONES DE BAJA TENSIÓN DE LOS EDIFICIOS DEL CABILDO DE FUERTEVENTURA","FINALIZADO; A.C.","Abierto; regulación armonizada, Trasladado al servicios Generales:20.12.2021","2021-06-29",{"$f":"J106-I106","v":84388.23000000001},5907.18,90295.41,337552.92,"Servicio","Abierto","3 PRORROGAS DE 12 MESES","12 MESES","50711000-2: Servicios de reparación y mantenimiento de grupos de equipos eléctricos de equipos \n50700000-2: Servicios de reparación y mantenimiento de equipos de edificios\n","2021-06-30","2021-11-11","2021-11-17",null,null,{"$f":"X106-W106","v":62439.88},4370.79,66810.67,"Jorge Hernández Hernández, Técnico del Servicio de Servicios Generales","CLECE, S.A.","A-80364243","2021-12-18","2021-12-20"]
["Industria, energia, comnercio, Artesania y Actividades Clasificadas","Industria y Actividades Clasificadas","2020/30935Q; OB0009/21","Instalación con energías renovables del Polideportivo Insular ","FINALIZADO; A.C.; R.P. CONTRATOS","Trasladao al servicio de Industria:18.11.2021","2021-07-20",76930.28,5385.12,82315.399999999994,76930,"Obras","simplificado",null,"60 días","45315600-4; 45310000-3; 45259900-6; 45261215-4","2021-07-21","2021-10-26","2021-11-16",null,null,67973.98,4758.18,72732.160000000003,"Mateo Aguirar Grimón","ELECTRIMEGA, S.L.","B76210632","2021-11-18","2021-11-18"]
["Infraestructuras, Territorio y Sector Primario","Infraestructuras","2019/00000517W \nOB0007/21","ACONDICIONAMIENTO Y MEJORA PAISAJÍSTICA DE ESPACIO PÚBLICO EN LA VILLA DE BETANCURIA FDCAN 2019","FINALIZADO; A.C.; R.P. CONTRATOS","Trasladado expte. a Infraestructuras:15.12.2021","2021-06-29",154927.67000000001,10844.94,165772.60999999999,154927.67000000001,"Obra","Abierto Simplificado","No procede","7 meses","45262522-6\n 45233160-8\n45233253-7\n","2021-07-02","2021-11-18","2021-11-19",null,null,141526.43,9906.85,151433.28,"Beatriz Suárez Bosa; Agustín Medina Hijazo","CRISPAL ISLAS, S.L.","B76126804","2021-12-13","2021-12-15"]
[null,"Servicio Infraestructuras","2020/30687K- SE0027/21","Servicio para la dirección F., responsable contrat. Y coordinación Seguridad y Salud de las obras Pavimentado c en Betancuria y asfaltado caminos diseminados rurales en Tuineje","FINALIZADO; A.C.","Trasladado expte. al Servicio Infraestructuras:22.11.2021","2021-07-08",null,1149.93,3534.89,16427.599999999999,"Servicio","Simplificado",null,2,"71240000-2","2021-08-18","2021-11-12","2021-11-22",null,null,null,null,null,"Beatriz Suarez Bosa",null,null,null,"2021-11-22"]
[null,null,"2020/30687K/LOTE 1","LOTE 1: Servio D.F. y responsable cont. Ejecucion obra: Pavimentado Presidente Hormiga en Betancuria; en Calle Real en Valle Santa Inés; y en calle Buenaventura…","FINALIZADO; A.C.",null,null,3534.89,247.44,3782.34,null,null,null,null,0.1,null,null,null,null,null,null,2085.58,145.99,2231.5700000000002,null,"ABRAHAM DOMINGUEZ DE LEÓN","DNI: 78530753J","2021-11-16","2021-11-22"]
[null,null,"2020/30687K/LOTE 2","LOTE 2: Servio D.F. y responsable cont. Ejecucion obra: Plan de asfaltado caminos municipales diseminados Tuineje. Fase II","FINALIZADO; A.C.",null,null,6451.7,451.62,4072.95,null,null,null,null,null,null,null,null,null,null,null,3806.5,266.45,4072.95,null,"ABRAHAM DOMINGUEZ DE LEÓN","DNI: 78530753J"]
[null,"TURISMO","2020/30687K/LOTE 3","LOTE 3: Servio D.F. y responsable cont. Ejecucion obra: Plan de asfaltado caminos municipales diseminados Tuineje. Fase III","FINALIZADO; A.C.",null,null,6441.01,450.87,6891.88,null,null,null,null,null,null,null,null,null,null,null,3800.2,266.01,4066.21,null,"ABRAHAM DOMINGUEZ DE LEÓN","DNI: 78530753J"]
["Turismo, Industria y Actividades Clasificadas","Servicio de Turismo","2021/00010722Q; SE0028/21","CONTRATO SERVICIOS PLAN ESTRATÉGICO DE TURISMO DE FUERTEVENTURA","FINALIZADO; A.C.","Trasladado expte.a Turismo:24.11.2021 ","2021-08-19",{"$f":"J113-I113","v":56055},3923.85,59978.85,56055,"Servicio","Abierto","No procede","3 MESES","79.413000-2 Servicios de consultoría en gestión de marketing","2021-08-23","2021-11-12","2021-11-24",null,null,{"$f":"X113-W113","v":39900},2793,42693,"Idaira Saavedra Brito","AUREN CONSULTORES SP, S.L.P.","B-87352340,","2021-11-16","2021-11-24"]
["AGRICULTURA, GANADERÍA Y PESCA","Agricultura","2021/00016203T\n(SE0045/21)\n","SERVICIO DE PRODUCCIÓN Y EJECUCIÓN DE LA FERIA VIRTUAL Y SEMIPRESENCIAL “FEAGA 2021”.","FINALIZADO; A.C","Trasladado expte. Agricultura:03.12.2021","2021-10-20",68945.56,4826.1899999999996,73771.75,68945.56,"Servicio ","Abierto, Urgente",null,1,"79950000-8; 79956000-0;79951000-5; 92111250-9","2021-10-20","2021-11-23","2021-11-26",null,null,53100,3717,56817,"Jefe de Agricultura, Ganadería y Pesca","GUAXARA CASTAÑEYRA DE LEÓN","DNI: 78503729Z","2021-11-25","2021-11-26"]
["Servicios Generales","Servicios Generales","2021/00005338V; SE0034/21","SERVICIO DE MANTENIMIENTO DE LOS CENTROS DE TRANSFORMACIÓN DEL CABILDO DE FUERTEVENTURA","FINALIZADO; A.C.","SUPERSIMPLIFICADO","2021-08-25",{"$f":"J115-I115","v":7019.2199999999993},491.35,7510.57,14038.44,"Servicio ","Abierto Simplificado art. 159.6 LCSP","MAXIMO 24 MESES","24 MESES","45315400-2 Instalaciones de alta tensión\n50532200-5 Servicios de reparación y mantenimiento de transformadores\n51111000-3 Servicios de instalación de motores eléctricos, generadores y transformadores","2021-08-27","2021-11-22","2021-11-29",null,null,{"$f":"X115-W115","v":6403},448.21,6851.21,"Don Jorge Hernández Hernández, Técnico del servicio de Servicios Generales","ELECNOR, S.A.","A48027056","2021-11-26","2021-11-29"]
["Infraestructuras Territorio y Sector Primario","Servicio de Infraestructuras","2020/00029460J; OB0010/21","PAVIMENTADO DE CALLES EN T.M. BETANCURIA - FDCAN, dividido en tres lotes ","FINALIZADO; A.C.; R.P. CONTRATOS","Trasladado expte.  A Infraestructuras: 15.12.2021","2021-07-20",114711.85,8029.83,122741.68,114711.85,"OBRA","ABIERTO SIMPLIFICADO","No procede",null,"45233222-1: Trabajos de pavimentación y asfaltado","2021-07-22","2021-12-07","2021-12-15",null,null,null,null,null,"Don Abraham Domínguez de León, Ingeniero de Caminos Canales y Puertos","OBRAS PÚBLICAS CANARIAS S.L.","B76140953","2021-12-14","2021-12-15"]
[null,"Servicio de Infraestructuras","2020/00029460J; OB0010/21","PAVIMENTADO DE CALLES EN T.M. BETANCURIA - FDCAN (LOTE Nº 1)","FINALIZADO; A.C. R.P. CONTRATOS","SIMPLIFICADO","2021-07-20",26613.24,1862.93,{"$f":"H117+I117","v":28476.170000000002},null,"OBRA","ABIERTO SIMPLIFICADO","No procede","0,33 (10 DIAS)","45233222-1: Trabajos de pavimentación y asfaltado","2021-07-22","2021-12-07","2021-12-15",null,null,{"$f":"X117-W117","v":25098.95},1756.93,26855.88,"Don Abraham Domínguez de León, Ingeniero de Caminos Canales y Puertos","OBRAS PÚBLICAS CANARIAS S.L.","B76140953","2021-12-14","2021-12-15"]
[null,"Servicio de Infraestructuras","2020/00029460J; OB0010/21","PAVIMENTADO DE CALLES EN T.M. BETANCURIA - FDCAN (LOTE Nº 2)","FINALIZADO; A.C.;R.P.CONTRATOS","SIMPLIFICADO","2021-07-20",40418.35,2829.28,{"$f":"H118+I118","v":43247.63},null,"OBRA","ABIERTO SIMPLIFICADO","No procede","0,33 (10 DIAS)","45233222-1: Trabajos de pavimentación y asfaltado","2021-07-22","2021-12-07","2021-12-15",null,null,38118.550000000003,2668.3,40786.85,"Don Abraham Domínguez de León, Ingeniero de Caminos Canales y Puertos","OBRAS PÚBLICAS CANARIAS S.L.","B76140953","2021-12-14","2021-12-15"]
[null,"Servicio de Infraestructuras","2020/00029460J;OB0010/21","PAVIMENTADO DE CALLES EN T.M. BETANCURIA - FDCAN (LOTE Nº 3)","FINALIZADO; A.C.;R.P.CONTRATOS","SIMPLIFICADO","2021-07-20",47680.26,3337.62,{"$f":"H119+I119","v":51017.880000000005},null,"OBRA","ABIERTO SIMPLIFICADO","No procede","0,33 (10 DIAS)","45233222-1: Trabajos de pavimentación y asfaltado","2021-07-22","2021-12-07","2021-12-15",null,null,44967.25,3147.71,48114.96,"Don Abraham Domínguez de León, Ingeniero de Caminos Canales y Puertos","OBRAS PÚBLICAS CANARIAS S.L.","B76140953","2021-12-14","2021-12-15"]
[null,"Servicio Infraestructuras","2020/30474S, OB006/21","Asfaltado caminos municipales de titularidad publica diseminados Tuineje, integrado por dos lotes","FINALIZADO, Trasladado expte. Servicio:21.12.2021 ","SIMPLIFICADO","2021-06-17","557432.84","39020.30","596453.14",557432.84,"OBRAS","ABIERTO SIMPLIFICADO",null,null,"45233222-1","2021-06-21","2021-11-23","2021-12-20",null,null,null,null,null,null,null,null,null,"2021-12-20"]
[null,null,"2020/30474S, OB006/21; LOTE 1","Asfaltado caminos municipales de titularidad publica diseminados Tuineje, Fase II","FINALIZADO ok",null,null,264068.21000000002,18484.77,282552.98,null,null,null,null,"1 MES",null,null,null,null,null,null,264068.21000000002,18484.77,282552.98,"Abrahan Domínguez","CRISPAL ISLAS, S.L.","B76126804","2021-12-17"]
[null,null,"2020/30474S, OB006/21; LOTE 2","Asfaltado caminos municipales de titularidad publica diseminados Tuineje, Fase III","FINALIZADO",null,null,261174.86,18282.240000000002,279457.09999999998,null,null,null,null,"1 MES",null,null,null,null,null,null,261174.86,18282.240000000002,279457.09999999998,null,"OBRAS PÚBLICAS CANARIAS, S.L.","B76140953","2021-11-29"]
["Infraestructuras, Territorio y Sector Primario","Servicio de Infraestructuras","2020/00004613X; OB0024/21","FDCAN ACONDICIONAMIENTO DE MÁRGENES Y ACCESOS EN EL BARRANCO DE BÁCHER. MONTAÑA HENDIDA. T.M. DE TUINEJE","FINALIZADO; A.C.; R.P. CONTRATOS","Trasladado al Servicio extpe.:03.01.2022; incluidoa documentación expte. ver","2021-11-23",{"$f":"J123-I123","v":1604503.46},112315.24,1716818.7,1604503.46,"OBRA","ABIERTO SIMPLIFICADO",null,"16 meses","45246100-4: Construcción de muros de encauzamiento","2021-11-23","2021-11-28","03.12.2021",null,null,{"$f":"X123-W123","v":1250710.45},87549.73,1338260.18,"Doña Beatriz Suarez Bosa","CONSTRUCCIONES RODRÍGUEZ RAMÍREZ S.A. (CORORASA),","A35091719","2021-12-30","03.01.2022"]
["Infraestructuras, Territorio y Sector Primario","Servicio de Infraestructuras","2020/00022850G; OB002/21","PICOS (20-24) - RED DE SANEAMIENTO Y PLUVIALES CALLE ARAGÓN, PUERTO DEL ROSARIO","ADJUDICADO",null,"2021-11-04",{"$f":"J124-I124","v":608812.64},42616.88,651429.52,608812.64,"OBRA","ABIERTO SIMPLIFICADO",null,"5 meses","45232410-9: OBRAS DE SANEAMIENTO\n45233200-1: TRABAJOS DIVERSOS DE PAVIMENTACIÓN","2021-11-04","2021-12-29","2022-01-03",null,null,{"$f":"X124-W124","v":531797.84},37225.85,569023.68999999994,"Manuel Martínez Calaco","OBRAS PÚBLICAS CANARIAS S.L.,","B76140953"]
["PRESIDENCIA","Servicio Gestión de Bienes","2021/5478L- AE001/21","ARRENDAMIENTO INMUEBLE PARA UBICACIÓN PERSONAL CABILDO FUERTEVENTURA, ENTRE OTROS DE RECURSOS HUMANOS","FINALIZADO; A.C. ","Expte. en  Gestion de Bienes, INCLUIDAD COCUMENTACION A.C.","2021-08-11",206400,14448,220848,206400,"Privado","Abierto ",12,"4 años ","70220000-9","2021-08-12","2021-12-23","2022-01-05",null,null,206400,14448,220848,"Cristina Arribas","PALAFUSA, S.L.- SQUALE INTERNACIONAL","B35001940; B35078344","2021-12-23","2022-02-21"]
[null,"Servicio Educación y Juventud","2020/21037P; SU0006/21","SUMINISTRO MATERIAL INVENTARIABLE-INSTRUMENTOS MUSICALES","FINALIZADO; A.C.","Trasladado al Servicio:21.10.2021","2021-05-10",90235.33,6316.47,96551.8,107423.01,"SUMINISTRO","Abierto, simplificado",null,"30 d","37310000-4: \n37312000-8:","2021-05-12","2021-07-16","2021-07-22",null,null,90235.33,6316.47,96551.8,"Javier Santos Alocen","HAZEN DSITRIBUIDORA GENERAL DE PIANOS, S.A.","A28179836","2021-07-21","2021-07-23"]
[null,"Servicio de Informática y Nuevas Tecnologías","2021/10139P, SU002/21","SUMINISTRO E INSTALACIÓN DE APLICACIONES DE FIRMA ELECTRÓNICA EN LOS APLICATIVOS CONTABLES Y CONTABILIDAD ANALÍTICA, Y DE FORMACIÓN Y MANTENIMIENTO APLICACIONES","FINALIZADO; A.C.","Trasladado al Servicio Informática:05.01.2021","2021-11-25",270285,18919.95,289204.95,270285,"SUMINISTRO, SERVICIO","P/N sin publicidad",null,"36m","48920000-3; 72265000-0; 72267100-0",null,"2021-12-17","2022-01-05",null,null,289204.95,18919.95,289204.95,"Francisco Padilla Castillo","AYTOS SOLUCIONES INFORMATICAS, S.L.U.","B41632332","2021-12-21","2022-01-05"]
[]
[]
[]
[]
[]
[]
[]
[]
[]
[]
[]
[null,null,null,null,null,null,{"$f":"F142","v":0}]

{"sheet":"EXPEDIENTES 2022","index":1,"n_rows":111,"n_cols":30,"rows_kept":111,"cut":false,"hidden":true,"merged":[]}
["CONSEJERIA","SERVICIO","Nº EXP.","NOMBRE DE EXPEDIENTE","SITUACIÓN ACTUAL","OBSERVACIONES","FECHA APROBACIÓN EXPEDIENTE","IMPORTE DE LICITACIÓN SIN IGIC","IGIC","IMPORTE DE LICITACIÓN CON IGIC","VALOR ESTIMADO SIN IGIC","TIPO DE CONTRATO","TRÁMITE -PROCEDIMIENTO","PRÓRROGA (en meses)","PLAZO DE EJECUCIÓN (en meses)","CPV","FECHA PUBLICACIÓN LICITACIÓN","FECHA DE ADJUDICACIÓN ","FECHA PUBLICACIÓN ADJUDICACIÓN","FECHA  DESIERTO","FECHA RENUNCIA O DESISTIMIENTO","IMPORTE DE ADJUDICACIÓN SIN IGIC","IGIC ADJUDICACIÓN","IMPORTE DE ADJUDICACIÓN CON IGIC","RESPONSABLE CONTRATO","CONTRATISTA NOMBRE ","CONTRATISTA CIF","FECHA FORMALIZACIÓN CONTRATO","FECHA PUBLICACIÓN CONTRATO"]
["Asesoría Jurídica","Asesoría Jurídica","2019/28395X","PRORROGA CONTRATO EUGENIA -MODIFICACIÓN ART.17 (MODFICADO CONTRATO","Modificado","ENTRADA:09.10.2020- MODIFICADO CONTRATO: Devuelto expte. a Asesoría Jurídica:31.10.2020",null,null,null,null,null,null,"Modificado"]
["Servicio de Asuntos Sociales, Sanidad, Consumo e Inmigración","Asuntos Sociales","2020/00017193M; SE0049/20","CONTRATO ADMINISTRATIVO DE SERVICIOS PARA AUXILIAR AL CABILDO DE FUERTEVENTURA EN LA GESTIÓN DEL SERVICIO DE LA RESIDENCIA INSULAR Y CENTROS DE DIA PARA PERSONAS DEPENDIENTES POR DISCAPACIDAD INTELECTUAL. ","Adjudicado, por precios unitarios; Expte. envio document. A. Cuentas; FINALIZADO;","Este contrato se envío al T. Administrativo de Contratos y se adjudico por Consejo G. el13.08.2021","2020-12-10",10835401.199999999,0,10835401.199999999,10835401.199999999,"Servicio \n(Contrato mixto servicio- suministro)","Abierto \n(Regulación armonizada)","No procede","4 años ","85312000-9 \n85312100-0 \n85311000-2","2020-12-14","2021-08-13","2021-10-20",null,null,9101737.0099999998,0,9101737.0099999998,"Doña Auxiliadora Cabrera Padilla y Doña Nereida Gil Betancor","ISCAN SERVICIOS INTEGRALES S.L.","B35853738"]
["Políticas Sociales, Formación y Recursos Humanos","Asuntos Sociales","2020/6217G","Emergencia  Intervención social suministro kiks productos primera necesidadl; No estamos solos, juntos lo lograremos- Dividido en 2 lotes","Emergencia","devuelto expte.","2020-03-18",null,null,null,null,"Suministro","Emergencia COVID-19","posibilidad de prórroga encaso de seguir con estado de alarma","3 meses",null,"13/04/2020- Publicación acuerdo adjudicar","2020-03-18",null,null,null,null,null,null,"Luz Divina Cabrera Travieso \n(Funcionaria del\nCabildo de Fuerteventura)","JOSÉ PADILLA FRÁNCES S.L ","B-3525422"]
["Políticas Sociales, Formación y Recursos Humanos","Asuntos Sociales","2020/7008J","Contrato Emergencia Suministro de lote de alimentación de primera necesidad","Emergencia","Traslado expediente a Servicios Sociales el 07/05/2020",null,null,null,null,null,"Suministro","Emergencia COVID-19"]
["Cultura, Patrimonio Histórico y Difusión Patrimonio Cultural","Centro de Arte y Exposiciones","2019/00011759A- Plyca SE0028/20","SERVICIO DE MONTAJE Y DESMONTAJE DE EXPOSICIONES, APOYO A LA ACTIVIDAD DEL PALACIO DE FORMACIÓN Y CONGRESOS DE FUERTEVENTURA Y MANIPULACIÓN DE LA COLECCIÓN DE ARTE, ORGANIZACIÓN DEL DEPÓSITO DE ARTE DEL CABILDO INSULAR DE FUERTEVENTURA, EN EL CENTRO DE ARTE JUAN ISMAEL Y CENTROS ADSCRITOS","Lote 1; Desistido procedimiento","2 LOTES","2020-09-02",32933.129999999997,2305.3200000000002,35238.449999999997,188231.7,"Servicio","Abierto","Períodos de 1 año","1 año","63100000-0/  63110000-3/  79950000-8/ 79956000-0/ 92521000-9 ","2020-09-09","Desistido proce: 14/06/2021"]
["Cultura, Patrimonio Histórico y Difusión Patrimonio Cultural","Centro de Arte y Exposiciones","2019/00011759A- Plyca SE0028/20","SERVICIO DE MONTAJE Y DESMONTAJE DE EXPOSICIONES, APOYO A LA ACTIVIDAD DEL PALACIO DE FORMACIÓN Y CONGRESOS DE FUERTEVENTURA Y MANIPULACIÓN DE LA COLECCIÓN DE ARTE, ORGANIZACIÓN DEL DEPÓSITO DE ARTE DEL CABILDO INSULAR DE FUERTEVENTURA, EN EL CENTRO DE ARTE JUAN ISMAEL Y CENTROS ADSCRITOS","Lote 2; Desistido procedimiento","2 LOTES","2020-09-02",61182.720000000001,4282.8,65465.52,188231.7,"Servicio","Abierto","Períodos de 1 año","1 año","63100000-0/  63110000-3/  79950000-8/ 79956000-0/ 92521000-9 ","2020-09-09"]
["Cultura, Patrimonio Histórico y Difusión Patrimonio Cultural","Cultura","2019/32623Y","SUMINISTRO Y SERVICIO DE ASISTENCIA TÉCNICA PARA ILUMINACIÓN, SONIDO, AUDIOVISUALES E INFRAESTRUCTURAS PARA EVENTOS DEL CABILDO DE FUERTEVENTURA","DEVUELTO SUBSANAR; Anulado expte.","Devuelto a Cultura 21.04.2020. PCAP terminado a la espera de indicaciones (NERE)"]
["Cultura, Patrimonio Histórico y Difusión Patrimonio Cultural","Cultura","2020/00022111R- SU0016/20","SUMINISTRO DE DOS PIANOS DE COLA PARA SU UTILIZACIÓN EN LAS DIFERENTES ACTIVIDADES CULTURALES QUE SE ORGANIZAN REGULARMENTE EN EL AUDITORIO INSULAR DE FUERTEVENTURA Y EN EL CENTRO POLIVALENTE MANUEL SANCHEZ GONZÁLEZ.","Suspendido contrato:06.06.2021","Entrada: 13/10/20-","2020-11-10",79253.03,5547.71,84800.74,79253.03,"Suministro","Abierto",null,"plazo máximo de 60 DÍAS a partir","37311100-2","2020-11-12"]
["Deportes, Seguridad y Emergencias","Deportes","2020/10019F","CONTRATACIÓN DE LOS SERVICIOS DE REDACCIÓN, DIRECCIÓN E IMPLANTACIÓN Y ACTUALIZACIÓN DEL PLAN DE AUTOPROTECCIÓN DE LA VUELTA A FUERTEVENTURA EN KAYAK 2021-2024.","DEVUELTO SUBSANAR","ENTRADA:27.05.2020- Devuelto al servicio: 23/07/20 (Roberto)"]
["Deportes, Seguridad y Emergencias","Deportes","2020/7578P(NEREIDA)","CONTRATO TRANVERSAL DEL SERVICIO TRANSPORTE DISCRECIONAL CON CONDUCTOR \nDE COLECTIVOS-GRUPOS  MEDIANTE GUAGUAS-AUTOBUSES PARA LAS ACTIVIDADES ORGANIZADAS \nPOR EL EXCMO. CABILDO DE FUERTEVENTURA Y VEHÍCULOS DE ALQUILER.","ENTRADA","Entrada: 21.04.2020 DEVUELTO AL SERVICIO 01.07.2020-Entrada: 29/09/20 (NEREIDA)"]
["Presidencia, Hacienda y Promoción Económica","Desarrollo Economico+B14:U14","2020/00015400Y- SE0032/20","PROYECTO FORMATIVO CUALIFÍCATE 2020; INTEGRADO POR 23 LOTES","FINALIZADO"," (DOUE)- Exento de IGIC- Dividido en 23 Lotes ","2020-10-19",1915200,0,1915200,1915200,"Servicio","Abierto- Regulación armonizada","No procede","1 año","80530000-8","2020-10-19","16/12/2021; 27/12/2021","2021-12-27",null,null,null,null,null,null,null,null,"2022-02-17","2022-02-22"]
["Empleo, Educación y Juventud","Educación y Juventud","2020/00005217Q","CONTRATACIÓN DE SERVICIOS DE AGENCIA DE VIAJES PARA EL PROGRAMA \"BELINGUEANDO\".","DEVUELTO SUBSANAR","Entrada: 09.09.2020; Devuelto al Servicio para subsanar:25.09.2020"]
["Empleo, Educación y Juventud","Educación y Juventud","2020/00007280D","ADQUISICIÓN 229 TABLETS CONVENIO EDUCACIÓN","ASESORIA JURIDICA","Entrada:  03/11/20  Solicitado informe jurídico:13.11.2020 "]
["Empleo, Educación y Juventud","Educación y Juventud","2020/20229M","CONTRATACIÓN DEL SERVICIO DE PRODUCCIÓN AUDIOVISUAL DEL CONCURSO DENOMINADO \"FUERTEVENTURA TESORO AUTÉNTICO\"","ENTRADA","ENTRADA:17.09.2020-DEVUELTO 30/09/2020- ENTRADA 10/11/2020"]
["Empleo, Educación y Juventud","Educación y Juventud","2020/20945P; SE0032/21","Fuerteventura Al Golpito","FINALIZADO; 2022","Trasladado expte. al Servicio:18.01.2022","2021-08-19",51306.55,3591.46,54898.01,102613.1,"Servicio \n","Abierto",12,12,"79952000-2","2021-08-26","2021-12-13","2021-12-16",null,null,50000,3500,53500,"Jésica Reyes Espinel","NORTE Y SOLANA, S.L.","B35560176","2022-01-17","2022-01-18",2022]
["Industria, Comercio, Transportes, Accesibilidad y Movilidad Sostenible","Industria y Actividades Clasificadas","2020/00007584Z","TRASPASO DE ACTIVIDAD DE IBIL A REPSOL","ENTRADA","Entrada:24.09.2020; Pendiente que la empresa Repsol se aclare (Silvia)"]
["Industria, Comercio, Transportes, Accesibilidad y Movilidad Sostenible","Industria y Actividades Clasificadas","2020/00008185V","CESIÓN DE USO DE NAVES INDUSTRIALES EN LLANOS DE LA HIGUERA","FINALIZADO","Entrada: 14/04/2020; Expte. remitido a Gestión de bienes (Cristina Arrivas:18.05.2020, Lo tramitará ella)"]
["Infraestructuras, Territorio y Sector Primario","Infraestructuras","2019/00038607X- Plyca SE0027/20; 2 LOTES","Dirección facultativa de la obra, de las instalaciones y la coordinación de seguridad y salud de la obra correspondiente al proyecto denominado RESIDENCIA Y CENTRO DE DÍA PARA PERSONAS MAYORES DEPENDIENTES, en Puerto del Rosario","FINALIZADO; A.C."]
["Infraestructuras, Territorio y Sector Primario","Infraestructuras","2019/2041L; OB0003/21","SUSTITUCION DE CESPED ARTIFICIAL EN CAMPOS DE FUTBOL 1 Y 2 \"FRANCISCO MELIAN\"","FINALIZADO"," Trasladado al Servicio:26.08.2021; Documentación enviar al Tribunal Cuentas",null,null,null,1292078.51]
["Infraestructuras, Territorio y Sector Primario","Infraestructuras","2019/38480K- Plyca SE0029/20","CONTRATO DE SERVICIOS PARA LA REDACCIÓN DE PROYECTOS Y DIRECCIÓN FACULTATIVA DE LAS OBRAS Y COORDINACIÓN DE SEGURIDAD Y SALUD DE LAS MISMAS EN CENTROS DE LA RED DE MUSEOS: MIRADOR DE MORRO VELOSA, EN EL FARO DEL TOSTÓN Y CUEVA DEL LLANO","Desierto - Lote 2","Dividido en 9 lotes","2020-09-14",6577.21,460.4,7037.61,6577.21,"Servicio","Abierto simplificado","No procede","Hasta finalización ","71240000-2","2020-09-14",null,null,"2021-03-25"]
["Infraestructuras, Territorio y Sector Primario","Infraestructuras","2019/38480K- Plyca SE0029/20","CONTRATO DE SERVICIOS PARA LA REDACCIÓN DE PROYECTOS Y DIRECCIÓN FACULTATIVA DE LAS OBRAS Y COORDINACIÓN DE SEGURIDAD Y SALUD DE LAS MISMAS EN CENTROS DE LA RED DE MUSEOS: MIRADOR DE MORRO VELOSA, EN EL FARO DEL TOSTÓN Y CUEVA DEL LLANO","Desierto - Lote 5; FINALIZADO","Dividido en 9 lotes","2020-09-14",9462.99,662.41,10125.4,9462.99,"Servicio","Abierto simplificado","No procede","Hasta finalización ","71240000-2","2020-09-14",null,null,"2021-03-25"]
["Infraestructuras, Territorio y Sector Primario","Infraestructuras","2019/38480K- Plyca SE0029/20","CONTRATO DE SERVICIOS PARA LA REDACCIÓN DE PROYECTOS Y DIRECCIÓN FACULTATIVA DE LAS OBRAS Y COORDINACIÓN DE SEGURIDAD Y SALUD DE LAS MISMAS EN CENTROS DE LA RED DE MUSEOS: MIRADOR DE MORRO VELOSA, EN EL FARO DEL TOSTÓN Y CUEVA DEL LLANO","Desierto - Lote 8: FINALIZADO","Dividido en 9 lotes","2020-09-14",1389.06,97.23,1486.29,1389.06,"Servicio","Abierto simplificado","No procede","Hasta finalización ","1240000-2","2020-09-14",null,null,"2021-03-25"]
["Infraestructuras, Territorio y Sector Primario","Infraestructuras","2019/38480K- Plyca SE0029/20","CONTRATO DE SERVICIOS PARA LA REDACCIÓN DE PROYECTOS Y DIRECCIÓN FACULTATIVA DE LAS OBRAS Y COORDINACIÓN DE SEGURIDAD Y SALUD DE LAS MISMAS EN CENTROS DE LA RED DE MUSEOS: MIRADOR DE MORRO VELOSA, EN EL FARO DEL TOSTÓN Y CUEVA DEL LLANO","Desierto - Lote 9; Finalizado","Dividido en 9 lotes","2020-09-14",639.9,44.79,684.69,639.9,"Servicio","Abierto simplificado","No procede","Hasta finalización ","1240000-2","2020-09-14",null,null,"2021-03-25"]
["Infraestructuras, Territorio y Sector Primario","Infraestructuras","2020/00020843K- OB0014/20","ASFALTADO DE CALLES EN T.M. BETANCURIA, integrado por los 4 lotes ","FINALIZADO","Trasladado expte. al servicio Infraestructuras:24.06.2021","2020-11-10",287587.78000000003,20131.14,307718.92,287587.78000000003,"Obra","Abierto simplificado",null,"Un (1) mes partir del día siguiente al de la firma del acta de comprobación del replanteo.","45233222-1","2020-11-13","2021-05-17","2021-05-28",null,null,null,null,null,null,null,null,null,"2021-06-24"]
["Infraestructuras, Territorio y Sector Primario","Obras y Maquinaria","2018/67L","Contratación reservada a centros especiales de empleo, de iniciativa social (d.a. 4ª LCSP), para el servicio de limpieza de vehículos del Cabildo de Fuerteventura","DEVUELTO SUBSANAR","Propuesta aprobación en intervención:18.10.2019 Devuelto al servicio 12.03.2020 para subsanar RC2020, INFORME CAPACIDAD FINANCIERA..."]
["Infraestructuras, Territorio y Sector Primario","Obras y Maquinaria","2018/9H\nSE0008/20","Servicio de mantenimiento preventivo y correctivo del parque móvil del Cabildo de Fuerteventura y otras entidades adscritas","Desierto- Lote 4","Devuelto expte. a Obras y Maquinaria:09/07/2021","2020-02-24","7.600,00€  \n\n"," 532,00€\n\n"," 8.132,00€\n\n",518760,"Servicio","Abierto- Regulación armonizada","1 año (sin que su vigencia puede exceder de cuatro años)","1 año","50000000-5 \n50112000-3 \n50114000-7 \n50115000-4 \n","2020-05-04",null,null,"20/07/2020 \n(Lote 4 y 6)"]
["Infraestructuras, Territorio y Sector Primario","Obras y Maquinaria","2018/9H\nSE0008/20","Servicio de mantenimiento preventivo y correctivo del parque móvil del Cabildo de Fuerteventura y otras entidades adscritas","Desierto- Lote 6",null,"2020-02-24","3.540,00€ \n"," 247,80€\n","3.787,80€\n",518760,"Servicio","Abierto- Regulación armonizada","1 año (sin que su vigencia puede exceder de cuatro años)","1 año","50000000-5 \n50112000-3 \n50114000-7 \n50115000-4 \n","2020-05-04",null,null,"20/07/2020 \n(Lote 4 y 6)"]
["Red de Centros","Red de Museos","2019/00027721A","Servicio de recogida, transporte y custodia fondos provenientes de recaudación de la Red de Centros","DEVUELTO SUBSANAR","ENTRADA:15.06.2020 DEVUELTO AL SERVICIO PARA SUBSANARA 23.07.2020; ENTRADA:09.10.2020  DEVUELTO SUBSANAR 15.10.2020"]
["Cultura, Patrimonio Histórico y Difusión Patrimonio Cultural","Red de Museos","2020/9754E","Creación del Centro de Interpretación Montaña de Tindaya, Valores Naturales y Culturales propios.","ENTRADA","Entrada: 15/09/20-DEVUELTO 28/09/2020--ENTRADA 11/11/2020"]
["Infraestructuras, Territorio y Sector Primario","Servicios Generales","2019/00012519G","MANTENIMIENTO DE LA DOMÓTICA DEL PALACIO DE FORMACIÓN Y CONGRESOS","ASESORIA JURIDICA","ENTRADA:23.06.2020.SOLICITADO INFORME ASESORÍA JURÍDICA 30.10.2020"]
["Infraestructuras, Territorio y Sector Primario","Servicios Generales","2019/00031084P- Plyca SU0014/20","Suministro de material de oficina no inventariable","Desierto- Lote 2","  Lote 2 y 3 -Desierto","2020-09-07"," 16.767,38€\n","503,02€\n","17.270,40€\n","220338,56\n(total contrato)","Suministro","Abierto- DOUE","3 prórrogas anuales","1 año","30190000-7","2020-09-10",null,null,"Lote 2 \nLote 3\n17/11/2020"]
["Infraestructuras, Territorio y Sector Primario","Servicios Generales","2019/00031084P- Plyca SU0014/20","Suministro de material de oficina no inventariable","Desierto- Lote 3","  Lote 2 y 3 -Desierto","2020-09-07",30977.33,929.32,31906.65,"220338,56\n(total contrato)","Suministro","Abierto- DOUE","3 prórrogas anuales","1 año","30190000-7","2020-09-10",null,null,"Lote 2 \nLote 3\n17/11/2020"]
["Políticas Sociales, Formación y Recursos Humanos","Servicios Sociales","2019/00013398D","Contrato de servicio para la asistencia al área de bienestar social del cabildo de Fuerteventura en la preparación de los expedientes de contratación","DEVUELTO SUBSANAR","devuelto: 01.10.2019 (informe jurídico desfav: necesita informe de RRHH justificando la insuficiencia de medios)."]
["Industria, Comercio, Transportes, Accesibilidad y Movilidad Sostenible","Transportes y Comunicaciones","2020/12960","Contrato suministro e instalación de material inventariable para infraestructuras de tranasporte interurbano","DEVUELTO SUBSANAR ","Memoria, estudio económico, criterios adjudicación, duración del contrato, plazo de garantía de ejecución. 13.11.20"]
[null,null,"2021/4532Q","MODIFICACIÓN CONTRATO DE SERVICIO DE CORREO ELECTRONICO","FINALIZADO","DEVO"]
["Cultura, Patrimonio Histórico y Difusión Patrimonio Cultural","Centro de Arte y Exposiciones","2019/00011759A \n","LOTE Nº 1 CENTRO DE ARTE JUAN ISMAEL","Desierto","Abierto ","2020-09-02",32933.129999999997,2305.3200000000002,35238.449999999997]
["Cultura, Patrimonio Histórico y Difusión Patrimonio Cultural","Centro de Arte y Exposiciones","2019/00011759A \n","LOTE Nº 2 PALACIO DE FORMACIÓN Y CONGRESOS","Desierto","Abierto ","2020-09-02",61182.720000000001,4282.8,65465.52]
["Industria, Comercio, Transportes, Accesibilidad y Movilidad Sostenible","Industria y Actividades Clasificadas","2020/2777Z LOTE Nº2","Suministro de 5 vehículos 100 por cien eléctricos. DOS LOTES.","Adjudicado",null,null,null,null,null,null,null,null,null,null,null,null,"2021-06-01",null,null,null,135600,0,135600]
["Cultura, Patrimonio Histórico y Difusión Patrimonio Cultural","Cultura","2020/00022111R\n","SUMINISTRO DE DOS PIANOS DE COLA PARA SU UTILIZACIÓN EN LAS DIFERENTES ACTIVIDADES CULTURALES QUE SE ORGANIZAN REGULARMENTE EN EL AUDITORIO INSULAR DE FUERTEVENTURA Y EN EL CENTRO POLIVALENTE MANUEL SANCHEZ GONZÁLEZ.","Adjudicado"]
["Infraestructuras, Territorio y Sector Primario","Obras y Maquinaria","2018/9H\n","Servicio de mantenimiento preventivo y correctivo del parque móvil del Cabildo de Fuerteventura y otras entidades adscritas","Adjudicado- Lote 3",null,null,null,null,null,null,null,null,null,null,null,null,null,null,null,null,null,null,9041.5]
["Infraestructuras, Territorio y Sector Primario","Obras y Maquinaria","2018/9H\n","Servicio de mantenimiento preventivo y correctivo del parque móvil del Cabildo de Fuerteventura y otras entidades adscritas","Adjudicado- Lote 5",null,null,null,null,null,null,null,null,null,null,null,null,null,null,null,null,null,null,10272]
["Cultura, Patrimonio Histórico y Difusión Patrimonio Cultural","Cultura","2021/00009542N; SE0013/21","CONTRATO DE SERVICIOS TÉCNICOS DE SONIDO, ILUMINACIÓN, AUDIOVISUALES, ESTRUCTURAS Y TRABAJOS AUXILIARES PARA EL FESTIVAL FUERTEVENTURA EN MÚSICA 2021","FINALIZADO; A.C.","no celebrado","2021-06-16",97834.51,6848.42,104682.93,97834.51,"SERVICIO","ABIERTO, URGENTE",null,"2 DIAS",null,"2021-06-11","2021-06-25","2021-06-29",null,null,97800,6846,104646,null,"AUDIOLUZ CANARIAS S.L","B35294743","2021-06-26","2021-06-29"]
["Cultura, Patrimonio Histórico y Difusión Patrimonio Cultural","Cultura","2021/00009543J; SE0014/21","CONTRATO DE SERVICIOS COMPLEMENTRIOS Y/O AUXILIARES ASÍ COMO LA LOGÍSTICA PARA EL FESTIVAL FUERTEVENTURA EN MÚSICA 2021","FINALIZADO,A.C.","No se celebró este contrato. Trasladado al Servicio:02.07.2021","2021-06-25",94669.62,6626.87,101296.49,null,"SERVICIOS","ABIERTO, URGENCIA",null,"0.2",null,"2021-06-11","2021-06-25","2021-06-29",null,null,83619,5853.33,89472.33,"HORACIO UMPIERREZ","MAXAUDIO EVENTOS Y PRODUCCIONES S.L","B76262534","2021-06-26","2021-06-29"]
["Infraestructuras, Territorio y Sector Primario","Infraestructuras","2021/1890L","Suministro de material oficina no inventariable. Dos lotes","FINALIZADO","enviar t.C. documentación ","2021-05-31",null,null,null,160639.32999999999,"suministro","abierto ","3, de 12 meses","12 meses","30190000-7","2021-06-03","2021-09-21","2021-10-19",null,null,null,null,null,"Agustín Noval  Vázquez"]
["Infraestructuras, Territorio y Sector Primario","Infraestructuras","2021/9535M/2 lotes (4)","Acuerdo  marco para la contratación de los sevicios de redacción proyectos, dirección facultativaa de las obras gestionadas servicio Infraestructuras Cabildo/ 2 lotes","Licitación","Expte. Sara, extracto expte. a Audiencia",null,7803538.9699999997]
["Infraestructuras, Territorio y Sector Primario","Infraestructuras","2021/9535M/lote 1/a","Lote nº 1. a: Proyectos arquitectónicos",null,null,null,658916.38]
["Infraestructuras, Territorio y Sector Primario","Infraestructuras","2021/9535M/lote 2","Lote nº 2.: Proyectos de ingeniería. Dividido en 2 lotes"]
["Educación y Juventud","Escuela Insular de Música","2021/8534Q/5 lotes","Servicio de reparación, mantenimiento y afinación de los instrumentos musicales de la Escuela Insular de Música de Fuerteventura, 5 lotes","Licitación",null,null,55990.18,3919.31,59909.49,59909.49,"Servicio","Abierto",null,"2 años","50860000; 98396000","2021-10-07"]
["Educación y Juventud","Escuela Insular de Música","2021/8534Q/lote 1","Servicio de reparación, mantenimiento y afinación de los instrumentos musicales de la Escuela Insular de Música de Fuerteventura, Lote 1: Pianos",null,null,null,22566.27,1579.64,24145.91]
["Educación y Juventud","Escuela Insular de Música","2021/8534Q/lote 2","Servicio de reparación, mantenimiento y afinación de los instrumentos musicales de la Escuela Insular de Música de Fuerteventura, Lote 2: Instrumentos de viento",null,null,null,16248.84,1131.42,17386.259999999998]
["Educación y Juventud","Escuela Insular de Música","2021/8534Q/ lote 3","Servicio de reparación, mantenimiento y afinación de los instrumentos musicales de la Escuela Insular de Música de Fuerteventura, Lote 3: Instrumentos de cuerda",null,null,null,10315.370000000001,722.08,11037.45]
["Educación y Juventud","Escuela Insular de Música","2021/8534Q/ lote 4","Servicio de reparación, mantenimiento y afinación de los instrumentos musicales de la Escuela Insular de Música de Fuerteventura, Lote 4: Instrumentos de percusión",null,null,null,4965.7,347.6,5313.3]
["Educación y Juventud","Escuela Insular de Música","2021/8534Q/lote 5","Servicio de reparación, mantenimiento y afinación de los instrumentos musicales de la Escuela Insular de Música de Fuerteventura, Lote 5: Instrumentos electrónicos",null,null,null,1894,132.58000000000001,"                         2.026.58"]
["Infraestructuras, Territorio y Sector Primario","Infraestructuras","2020/24948D/ 2 lotes; SE0016/21","Servicio para la dirección facultativa y coordinación de  Segurdidad y salud obra \"Sustitución césped artificial en Campo de Fútbol 1 y 2 Francisco Melián, 2 lotes","FINALIZADO; A.C.","Trasladado al Servicio: 19.10.2021","2021-06-15",null,null,12248.42,11441.12,"Servicico","Simplificado",null,"2 meses","71240000-2","2021-06-16","2021-09-27","2021-10-18",null,null,null,null,null,"Pino Gonzalez Gordillo"]
["Políticas Sociales, Formación y Recursos Humanos","Prevención de Riesgos Laborales","2021/00008212Q\nLOTE Nº1","CONTRATO DE SUMINISTRO DE MASCARILLAS PARA LA PROTECCIÓN DEL PERSONAL DEL CABILDO DE FUERTEVENTURA FRENTE A LA COVID-19.","Adjudicado; SUSPENDER CONTRATO","SUPERSIMPLIFICADO","2021-08-05",25500,0,25500,57750,"Suministro","SUPERSIMPLIFICADO","No procede","2 MESES","33140000-3 Material médico fungible","2021-08-09",null,null,null,null,null,null,null,"Nelly Margarita Concepción Mederos","NACIL MEDICA4 GROUP,S.L.","B48434096"]
["Políticas Sociales, Formación y Recursos Humanos","Prevención de Riesgos Laborales","2021/00008212Q\nLOTE Nº2","CONTRATO DE SUMINISTRO DE MASCARILLAS PARA LA PROTECCIÓN DEL PERSONAL DEL CABILDO DE FUERTEVENTURA FRENTE A LA COVID-19.","FINALIZADO","SUPERSIMPLIFICADO","2021-08-05",3375,0,3375,57750,"Suministro","SUPERSIMPLIFICADO","No procede","2 MESES","33140000-3 Material médico fungible","2021-08-09",null,null,null,null,3127.5,0,3127.5,"Nelly Margarita Concepción Mederos","CAROLINA BENGOA GARCÍA","30615363V"]
["Infraestructuras, Territorio y Sector Primario","Servicio de Infraestructuras","2021/00012777R; SE0049/21\n(JULIA)","(PICOS 20-24) DF, RC y CSS de la obras \"PISTA DE ATLETISMO Y EDIFICACIÓN ANEXA EN CORRALEJO\"","Adjudicado",null,"2021-06-03",2401084.83,168075.94,2569160.77,2410084.83,"OBRA","Abierto ",null,"12 meses","45212000-6","2021-07-06","2021-10-27","2021-11-11",null,null,2004905.83,140343.41,2145249.2400000002,"Pino González Gordillo y Juan Carlos Pérez Sánchez","UTE PISTA ATLETISMO CORRALEJO","U16853566"]
[null,null,"2021/00007143M- SU0015/21; 3 lotes\n","SUMINISTRO DE VESTUARIO Y CALZADO LABORAL PARA EL PERSONAL DEL CABILDO DE FUERTEVENTURA , INTERADO POR 3 LOTES",null,null,"2021-06-03",150110,4503.3,null,null,"Suministro","Abierto",null,"90 dias","18221300-7: Impermeables.\n18100000-0: Ropa de trabajo, ropa de trabajo especial y accesorios.\n35113400-3: Ropa de protección y de seguridad .\n18330000-1: Camisetas y camisas.\n18235000-5: Jersey, cárdigans y artículos similares.\n18234000-8: Pantalones.\n18220000-7: Ropa para la intemperie.\n18223200-0: Chaquetas.\n18333000-2: Polos.\n18425000-4: Cinturones.\n18317000-4: Calcetines.\n18443340-1: Gorras.\n18441000-2: Sombreros.\n18830000-6: Calzado de protección.\n18813300-4: Calzado de vestir.\n18820000-3: Calzado deportivo.","2021-06-15",null,null,null,null,null,null,null,"Nelly Margarita Concepción Mederos"]
[null,"Servicio Infraestructuras","2020/30687K","Servicio para la dirección F., responsable contrat. Y coordinación Seguridad y Salud de las obras Pavimentado c en Betancuria y asfaltado caminos diseminados rurales en Tuineje","Finalizado","Trasladado expte. al Servicio Infraestructuras:22.11.2021","2021-07-08",null,1149.93,3534.89,16427.599999999999,"Servicio","Simplificado",null,2,"71240000-2","2021-08-18","2021-11-12","2021-11-22",null,null,null,null,null,"Beatriz Suarez Bosa",null,null,null,"2021-11-22"]
[null,null,"2020/30687K/LOTE 2","LOTE 2: Servio D.F. y responsable cont. Ejecucion obra: Plan de asfaltado caminos municipales diseminados Tuineje. Fase II",null,null,null,6451.7,451.62,4072.95,null,null,null,null,null,null,null,null,null,null,null,3806.5,266.45,4072.95,null,"ABRAHAM DOMINGUEZ DE LEÓN","DNI: 78530753J"]
[null,"TURISMO","2020/30687K/LOTE 3","LOTE 3: Servio D.F. y responsable cont. Ejecucion obra: Plan de asfaltado caminos municipales diseminados Tuineje. Fase III",null,null,null,6441.01,450.87,6891.88,null,null,null,null,null,null,null,null,null,null,null,3800.2,266.01,4066.21,null,"ABRAHAM DOMINGUEZ DE LEÓN","DNI: 78530753J"]
["Presidente del Cabildo","Servicios Generales","2020/00024130L\nSE0036/21","SEGURO DE ACCIDENTES COLECTIVO PARA EL PERSONAL DEL CABILDO DE FUERTEVENTURA, ORGANISMOS AUTÓNOMOS Y ENTES DEPENDIENTES","FINALIZADO","Trasladado al Servicio:13.01.2022","2021-09-01",28000,0,28000,134400,"Servicio","Abierto ","1 año hasta máximo 3 prórrogas","1 año","66512000-2\n66512100-3","2021-09-16","2021-12-10","13.01.2022",null,null,24469.55,0,24469.55,"Agustín Noval Vázquez","ZURICH INSURANCE PLC, SUCURSAL EN ESPAÑA","W0072130-H","2022-01-12","2022-01-13",2022]
[null,"Servicio Infraestructuras","2020/30474S, OB006/21","Asfaltado caminos municipales de titularidad publica diseminados Tuineje, integrado por dos lotes","FINALIZADO; A.C.","SIMPLIFICADO","2021-06-17","557432.84","39020.30","596453.14",557432.84,"OBRAS","ABIERTO SIMPLIFICADO",null,1,"45233222-1","2021-06-21","2021-11-23","2021-12-20",null,null,null,null,null,null,null,null,null,"2021-12-20"]
["Infraestructuras, Territorio y Sector Primario","Servicio de Infraestructuras","2020/00023112J; OB0021/21","REMINERALIZACIÓN DEL AGUA DESALADA DE LA PLANTA DESALADORA DE CORRALEJO PARA UN CAUDAL DE 4.000 M3/DÍA. T.M. LA OLIVA","FORMALIZACIÓN CONTRATO",null,"2021-10-29",363132.55,0,363132.55,363132.55,"OBRA","ABIERTO SIMPLIFICADO",null,"7 meses","45252126-7: Trabajos de construcción de plantas de tratamiento de agua potable","2021-11-03","2021-12-30","2022-01-11",null,null,289150.37,0,289150.37,"Beatriz Suárez Bosa","UTE Erbania REMINERALIZACIÓN EDAM CORRALEJO (TAGUA S.L.-ELMASA TECNOLOGÍA DEL AGUA S.A.U.),","U67951293",null,null,2022]
["Infraestructuras, Territorio y Sector Primario","Servicio de Infraestructuras","2020/00025219G-OB0011/21","AMPLIACIÓN Y MEJORA DE LA EDAM DE PTO ROSARIO 2ª FASE","FORMALIZACIÓN CONTRATO",null,"2021-08-06",1957532.58,0,1957532.58,1957532.58,"OBRA","ABIERTO SIMPLIFICADO",null,"9 meses","45232430-5: Obras para el tratamiento de agua 45252126-7: Trabajos de construcción de plantas de tratamiento de agua potable","2021-08-11","2021-12-30",null,null,null,1170843.67,0,1170843.67,"Beatriz Suárez Bosa","UTE Erbania REMINERALIZACIÓN EDAM PUERTO DEL ROSARIO (TAGUA S.L.-ELMASA TECNOLOGÍA DEL AGUA S.A.U.),","U67950964",null,null,2022]
["Infraestructuras, Territorio y Sector Primario","Servicio de Infraestructuras","2020/00023137S; OB0018/21","REMINERALIZACIÓN DEL AGUA DESALADA DE LA PLANTA DESALADORA DE GRAN TARAJAL PARA UN CAUDAL DE 4.000 M3/DÍA. T.M. TUINEJE","FORMALIZACIÓN CONTRATO",null,"2021-10-29",361216.01,0,361216.01,361216.01,"OBRA","ABIERTO SIMPLIFICADO",null,"7 meses","45252126-7: Trabajos de construcción de plantas de tratamiento de agua potable","2021-11-02","2021-12-30","2022-01-11",null,null,287636.31,0,287636.31,"Beatriz Suárez Bosa","UTE Erbania REMINERALIZACIÓN EDAM GRAN TARAJAL (TAGUA S.L.-ELMASA TECNOLOGÍA DEL AGUA S.A.U.),","U67951186"]
["Infraestructuras, Territorio y Sector Primario","Servicio de Infraestructuras","2020/00022850G; OB0022/21","PICOS (20-24) - RED DE SANEAMIENTO Y PLUVIALES CALLE ARAGÓN, PUERTO DEL ROSARIO","FORMALIZACIÓN ",2022,"2021-11-04",608812.64,42616.88,651429.52,608812.64,"OBRA","ABIERTO SIMPLIFICADO",null,"5 meses","45232410-9: OBRAS DE SANEAMIENTO\n45233200-1: TRABAJOS DIVERSOS DE PAVIMENTACIÓN","2021-11-04","2021-12-29","2022-01-03",null,null,531797.84,37225.85,569023.68999999994,"Manuel Martínez Calaco","OBRAS PÚBLICAS CANARIAS S.L.,","B76140953",null,null,2022]
["PRESIDENCIA","Servicio Gestión de Bienes","2021/5478L; AE001/21","ARRENDAMIENTO INMUEBLE PARA UBICACIÓN PERSONAL CABILDO FUERTEVENTURA, ENTRE OTROS DE RECURSOS HUMANOS","ADJUDICADO, pendiente contrato","Expte. en  Gestion de Bienes","2021-08-11",206400,14448,220848,206400,"Privado","Abierto ",12,"4 años ","70220000-9","2021-08-12","2021-12-23","2022-01-05",null,null,206400,14448,220848,"Cristina Arribas","PALAFUSA, S.L.- SQUALE INTERNACIONAL","B35001940; B35078344","PENDIENTE"]
[null,"Infraestructuras","2020/24948D/ 1 SE0016/21","Servicio para la dirección facultativa y coordinación de  Segurdidad y salud obra \"Sustitución césped artificial en Campo de Fútbol 1 Francisco Melián, lote nº 1","FINALIZADO; A.C.",null,null,11441.12,801.3,null,null,null,null,null,null,null,null,null,null,null,null,"4333.33","303.33",null,null,"LUIS BELTRÁN  PADILLA CARMONA","42889770Z","2021-10-06","2021-10-19"]
[null,"Infraestructuras","2020/24948D/ 2 SE0016/21","Servicio para la dirección facultativa y coordinación de  Segurdidad y salud obra \"Sustitución césped artificial en Campo de Fútbol 2 Francisco Melián, lote nº 2","FINALIZADO; A.C.",null,null,null,null,null,null,null,null,null,null,null,null,null,null,null,null,"3333.33","233.33",null,null,"LUIS BELTRÁN  PADILLA CARMONA","42889770Z","2021-10-06","2021-10-19"]
[null,"Informática","2021/10139P- SU0024/21","SUMINISTRO E INSTALACIÓN DE APLICACIONES DE FIRMA ELECTRÓNICA EN LOS APLICATIVOS CONTABLES Y CONTABILIDAD ANALÍTICA, Y\nDE SERVICIO DE FORMACIÓN Y MANTENIMIENTO DE DICHAS APLICACIONES","FINALIZADO; A.C.","Trasladado a Nuevas Tecnologías",null,"270285.00","18919.95 ","289204.95",null,null,"P/N SIN PUBLICIDAD",null,"Instal. 3 m y manten. 3 años"," 48920000-3, 72265000-0, 72267100-0","2021-12-17","2022-01-05",null,null,null,"270285.00","18919.95",null,"Francisco Padillas","AYTOS SOLUCIONES INFORMÁTICAS S.L.U.","B41632332","2021-12-21","2022-01-05"]
["Aguas, Residuos y Caza","Residuos","2021/8646J-SU0020/21","Suministro contenedores para servicio recogida separada residuos de envases ligeros y papel-cartón isla Fuert, 2 lotes","FINALIZADO; A. 2022, incluido en BD. A.C. ","Trasladado al Servicio:18.02.2022","2021-09-07",1213499.82,36405,1249904.82,1213499.82,"Suministro","Abierto Abierto, Sara",null,3,null,"2021-09-15","2021-12-30","2022-02-17",null,null,null,null,null,"Gemma Mosquera Paz"]
["Aguas, Residuos y Caza","Residuos","2021/8646J/ Lote 1","Suministro contenedores para servicio recogida separada residuos de envases ligeros y papel-cartón isla Fuert, lote 1: 377 contenedores de plástico","FINALIZADO","DOCUMENT. A.C. incluida ",null,340815.54,10224.469999999999,351040.01,null,null,null,null,null,"43210000-8",null,null,null,null,null,290290,"8708.70","298998.70",null,"ROTOTANK,S .L.","B9605743","2022-02-07","2022-02-18"]
["Aguas, Residuos y Caza","Residuos","2021/8646J/ lote2","Suministro contenedores para servicio recogida separada residuos de envases ligeros y papel-cartón isla Fuert, Lote 2: 702 contenedores carga lateral material metálico","FINALIZADO",null,null,872684.28,26180.53,null,null,null,null,null,null,"44613700-7",null,null,null,null,null,872235,"61056.45","933291.45",null,"SANIMOBEL, S.A.","A78169422","2022-02-04","2022-02-18"]
["Cultura, Patrimonio Histórico y Difusión Patrimonio Cultural","Palacio de Formación y Congresos","2021/00022016V- SE0061/21","Representación y puesta en escena para los espectáculos\núnicos infantiles “Amelia en la Ciudad de la ilusión”, “El Circo de los sueños” y “un paseo por las\nestrellas”, dentro de la IV Edición de Festín, Festival Infantil de Fuerteventura","FINALIZADO; ENVIAR 2022","Trasladado al Servicio:02.02.2021","2021-12-27",{"$f":"J76-I76","v":48847.13},3419.3,52266.43,48847.13,"SERVICIO","NEGOCIADO SIN PUBLICIDAD",null,"29 y 30 de enero de 2022.","92312000-2","2021-12-22","2022-01-24","2022-02-22",null,null,{"$f":"X76-W76","v":48847.13},3419.3,52266.43,"Catalina Carrascosa Molino","PRODUCCIONES ESCÉNICAS CLAPSO S.L.","B-35481837","2022-01-26","2022-02-28"]
["Políticas Sociales, Formación y Recursos Humanos","PREVENCION RISESGOS LABORALES","2021/00008115B- SU0028/21","SOFTWARE DE GESTIÓN INTEGRAL PARA EL SERVICIO DE PREVENCIÓN DE RIESGOS LABORALES DEL CABILDO DE FUERTEVENTURA","FINALIZADO","Publicado resolución desierto:01.02.2022; Trasladado expte. al Servicio:01.02.2022","2021-12-02",{"$f":"J77-I77","v":8513.7000000000007},595.96,9109.66,10289.700000000001,"SUMINISTRO","ABIERTO","24 MESES","12 MESES","48611000-4: Paquetes de software de bases de datos\n48612000-1: Sistema de gestión de base de datos","2021-12-10","Desierto",null,"2022-01-26"]
[null,null,"2020/00015400Y- SE0032/20","PROYECTO FORMATIVO CUALIFÍCATE 2020; LOTE Nº 1","FINALIZADO"]
[null,null,"2020/00015400Y- SE0032/20","PROYECTO FORMATIVO CUALIFÍCATE 2020; Lote nº 2","FINALIZADO"]
[null,null,"2020/00015400Y- SE0032/20","PROYECTO FORMATIVO CUALIFÍCATE 2020; Lote nº 3","FINALIZADO"]
[null,null,"2020/00015400Y- SE0032/20","PROYECTO FORMATIVO CUALIFÍCATE 2020; Lote nº 4","FINALIZADO"]
[null,null,"2020/00015400Y- SE0032/20","PROYECTO FORMATIVO CUALIFÍCATE 2020; Lote nº 5","FINALIZADO"]
[null,null,"2020/00015400Y- SE0032/20","PROYECTO FORMATIVO CUALIFÍCATE 2020; Lote nº 6","FINALIZADO"]
[null,null,"2020/00015400Y- SE0032/20","PROYECTO FORMATIVO CUALIFÍCATE 2020; Lote nº 7","FINALIZADO"]
[null,null,"2020/00015400Y- SE0032/20","PROYECTO FORMATIVO CUALIFÍCATE 2020; Lote nº 8","FINALIZADO"]
[null,null,"2020/00015400Y- SE0032/20","PROYECTO FORMATIVO CUALIFÍCATE 2020; Lote nº 9","FINALIZADO"]
[null,null,"2020/00015400Y- SE0032/20","PROYECTO FORMATIVO CUALIFÍCATE 2020; Lote nº 10","FINALIZADO"]
[null,null,"2020/00015400Y- SE0032/20","PROYECTO FORMATIVO CUALIFÍCATE 2020; Lote nº 11","FINALIZADO"]
[null,null,"2020/00015400Y- SE0032/20","PROYECTO FORMATIVO CUALIFÍCATE 2020; Lote nº 12","FINALIZADO"]
[null,null,"2020/00015400Y- SE0032/20","PROYECTO FORMATIVO CUALIFÍCATE 2020; Lote nº 13","FINALIZADO"]
[null,null,"2020/00015400Y- SE0032/20","PROYECTO FORMATIVO CUALIFÍCATE 2020; Lote nº 14","FINALIZADO"]
[null,null,"2020/00015400Y- SE0032/20","PROYECTO FORMATIVO CUALIFÍCATE 2020; Lote nº 15","FINALIZADO"]
[null,null,"2020/00015400Y- SE0032/20","PROYECTO FORMATIVO CUALIFÍCATE 2020; Lote nº 16","FINALIZADO"]
[null,null,"2020/00015400Y- SE0032/20","PROYECTO FORMATIVO CUALIFÍCATE 2020; Lote nº 17","FINALIZADO"]
[null,null,"2020/00015400Y- SE0032/20","PROYECTO FORMATIVO CUALIFÍCATE 2020; Lote nº 18","FINALIZADO"]
[null,null,"2020/00015400Y- SE0032/20","PROYECTO FORMATIVO CUALIFÍCATE 2020; Lote nº 19","FINALIZADO"]
[null,null,"2020/00015400Y- SE0032/20","PROYECTO FORMATIVO CUALIFÍCATE 2020; Lote nº 20","FINALIZADO"]
[null,null,"2020/00015400Y- SE0032/20","PROYECTO FORMATIVO CUALIFÍCATE 2020; Lote nº 21","FINALIZADO"]
[null,null,"2020/00015400Y- SE0032/20","PROYECTO FORMATIVO CUALIFÍCATE 2020; Lote nº 22","FINALIZADO"]
[null,null,"2020/00015400Y- SE0032/20","PROYECTO FORMATIVO CUALIFÍCATE 2020; Lote nº 23","FINALIZADO"]
["INFRAEStructuras, Territorio y Sector Primario","Servicio de Infraestructuras","2020/00025155D\n OB0013/21  \n(ANI)","AMPLIACIÓN Y MEJORA DE LA EDAM DE CORRALEJO","FORMALIZACIÓN CONTRATO; 2022",null,"2021-08-06",3205581.27,0,3205581.27,null,null,"Abierto",null,10,"45232430-5; 45252126-7","2021-08-13","2021-12-31","2022-01-04",null,null,1895496.67,5,null,"Beatriz Suárez Bosa","UTE.: MEDIOAMBIENTE RESIDUOS Y AGUAS MAREA, S.L-VVO. CONSTRUCCIONES Y PROYECTOS, S.A.","U67962845",null,null,2022]
["Transparencia, Participación Ciudadana y Nuevas Tecnologías","Informática y NNTT","2021/00015614D\nSE0048/21","TELEFONIA Y TELECOMUNICACIONES 2021","FORMALIZACIÓN",2022,"2021-11-04",213000,14910,227910,null,"SERVICIO","Abierto",null,12,"64210000-1; 64211100-9; 64212000-5","2021-11-05","2022-02-21","2022-02-22",null,null,211920.8,14834.46,226755.26,null,"UTE.: TELEFONICA DE ESPAÑA S.A.U.- TELEFONICA MOVILES DE ESPAÑA, S.A.U.","U67887364"]
[null,null,"2021/00007143M- SU0015/21; lote 1\n","SUMINISTRO DE VESTUARIO Y CALZADO LABORAL PARA EL PERSONAL DEL CABILDO DE FUERTEVENTURA , INTERADO POR 3 LOTES; Lote nº 1: Vestuario laboral para personal Cabildo","FINALIZADO",2022,null,null,null,94593,null,null,null,null,90,null,null,"2021-11-17",null,null,null,61485.45,1844.56,63330.01,"Nelly Margarita Concepción Mederos","SEBASTIÁN TEJERA, S.L.","B35203926","2021-12-21"]
[null,null,"2021/00007143M- SU0015/21; lote 2\n","SUMINISTRO DE VESTUARIO Y CALZADO LABORAL PARA EL PERSONAL DEL CABILDO DE FUERTEVENTURA , INTERADO POR 3 LOTES, LOTE Nº 2: Uniformidad agentes Medio Ambiente","pendient adjudica"]
[null,null,"2021/00007143M- SU0015/21; lote 3\n","SUMINISTRO DE VESTUARIO Y CALZADO LABORAL PARA EL PERSONAL DEL CABILDO DE FUERTEVENTURA , INTERADO POR 3 LOTES, LOTE Nº 3: Calzado laboral","Desestimiento contrato:25/08/2021",null,null,null,null,null,null,null,null,null,null,null,null,null,null,null,"2021-08-25"]
[null,"Palacio de Formación y Congresos","2020/26086C - SU0025/21","SUMINISTRO E INSTALACIÓN  DE UN EQUIPO DE SONIDO PARA EL AUDITORIO DEL PALACIO DE FORMACIÓN Y CONGRESOS DE FUERTEVENTURA","PENDIENTE",2022,"2021-11-30",90617.7,6343.24,96960.94,90617.7,"SUMINISTRO","ABIERTO SIMPLIFICADO",null,2,"32342410-9; 323442420-2; 32351300-1","2021-12-02"]
[null,"SERVICIO ASUNTOS SOCIALES, SANIDAD , CONSUMO E INMIGRACIÓN","2020/12167G - SE0059/21","SERVICIO DE DINAMIZACIÓN INTEGRAL Y PROMOCIÓN DE LA PARTICIPACIÓN INFANTIL DE FUERTEVENTURA. ISLA AMIGA","PENDIENTE",2022,"2021-12-18",101668.18,7116.77,108784.95,254170.45,"SERVICIO","ABIERTO",12,24,"98000000-3","2021-12-20"]
["Industria, Comercio, Transportes, Accesibilidad y Movilidad Sostenible","Industria y Actividades Clasificadas","2021/00009756L\nOB0030/21\n(ANI)","AYUNTAMIENTO DE LA OLIVA AUTOCONSUMO PISCINA MUNICIPAL","PENDIENTE",2022,"2021-12-10",76783.39,5374.84,82158.23,76783.39,"OBRA ","ABIERTO SIMplificado",null,3,"45300000-3; 45259900-6; 45231215-4","2021-12-13"]
["Industria, Comercio, Transportes, Accesibilidad y Movilidad Sostenible","Servicio de Industria y Actividades Clasificadas","2021/00009759E \nOB0028/21\n(ANI)","AUTOCONSUMO ESTACIÓN DE GUAGUAS DE PUERTO DEL ROSARIO","MESA DE CONTRATACIÓN",2022,"2021-12-07",103131.9,7219.23,110351.13,103131.9,"OBRA","ABIERTO SIMPLIFICADO",null,56,"45300000-3; 45315600-4; 45259900-6; 45261215-4","2021-12-13"]
["Infraestructuras","Servicio Infraestructuras","2020/22457W; SU0022/21\n(JULIA)","PICABAS 2020-2025 - SUMINISTRO E INSTALACIÓN DE DOS NUEVOS FILTROS DE ARENA EN LA EDAM DE GRAN TARAJAL       ","MESA CONTRATACIÓN",null,"2021-11-18",438567.58,30699.73,469267.31,438567.58,"SUMINISTRO","ABIERTO",null,10,"39370000-6; 43328000-8","2021-11-19"]
[null,"Informática y NNTT","2021/12786X- SU0027/21","SUMINISTRO DE LICENCIAS DE AUTOCAD","PENDIENTE",2022,null,129663.55,9076.4500000000007,138740,129663.55,"SUMINISTRO","Abierto simplificado",null,48,"48321000-4","2021-12-10"]